{"text_format":"3","workbook":"xlsx","n_sheets":13,"sheets":["Instruções","02 - Dashboard","03 - Projetos","04 - Equipe","05 - Clientes","06 - Categorias","07 - Marcos","08 - Tarefas","09 - Horas","10 - Financeiro","11 - Gantt","12 - Relatórios","13 - Cálculos"],"not_rendered":{"charts":9,"images":6,"macros":1,"defined_names":21,"pivot_tables":12},"read":"whole","date_system":"1900"}

{"sheet":"Instruções","index":0,"n_rows":86,"n_cols":4,"rows_kept":86}
["http://authenticator.sapphirebusinesstech.com:8080/access/v1/validate"]
["123456789"]
["contact@sapphirebusinesstech.com"]
[]
[200]
[]
[{"$f":"IF(A12=\"\",0,TODAY()-A12)","v":0}]
[]
[]
[null,null,"Any use for this file other than sample using and technical analysis without authorization is stricly prohibited and protected by copyright"]
[null,null,"Qualquer uso desse arquivo sem autorização outro que uso de exemplo e análise técnica é extritamente proibida e protegida por direitos autorais."]
[null,null,"Cualquier uso de este archivo sin autorización que no sea para fines de ejemplo o análisis técnico está estrictamente prohibido y está protegido por derechos de autor."]
[]
[]
[null,null,"MANUAL DE UTILIZAÇÃO"]
[]
[{"$nulls":3},"1. OBJETIVO DA PLANILHA"]
[null,null,"•","Sistema completo de gestão de projetos, tarefas e cronogramas construído apenas com recursos nativos do Excel 2019: Tabelas Estruturadas, Validação de Dados, Formatação Condicional, Segmentações, Gráficos, Tabelas Dinâmicas e funções (PROCV, ÍNDICE/CORRESP, SOMASES, CONT.SES, MÉDIASES). Não utiliza VBA, macros, Power Query nem Power Pivot."]
[null,null,"•","Atende desde projetos pessoais até projetos empresariais de médio porte, controlando prazos, responsáveis, horas, custos e progresso."]
[{"$nulls":3},"2. FLUXO RECOMENDADO DE UTILIZAÇÃO"]
[null,null,"•","1º) Leia esta aba de Instruções por completo."]
[null,null,"•","2º) Cadastre as Categorias (aba 06)."]
[null,null,"•","3º) Cadastre os Clientes (aba 05)."]
[null,null,"•","4º) Cadastre a Equipe (aba 04)."]
[null,null,"•","5º) Cadastre os Projetos (aba 03)."]
[null,null,"•","6º) Registre os Marcos de cada projeto (aba 07)."]
[null,null,"•","7º) Cadastre as Tarefas vinculadas a projetos e marcos (aba 08)."]
[null,null,"•","8º) Registre diariamente as Horas Trabalhadas (aba 09)."]
[null,null,"•","9º) Alimente o Controle Financeiro conforme os lançamentos ocorram (aba 10)."]
[null,null,"•","10º) Acompanhe a execução no Cronograma/Gantt (aba 11)."]
[null,null,"•","11º) Monitore os indicadores no Dashboard (aba 02)."]
[null,null,"•","12º) Consulte análises detalhadas nos Relatórios (aba 12)."]
[{"$nulls":3},"3. ORDEM CORRETA DE PREENCHIMENTO — POR QUE IMPORTA"]
[{"$nulls":3},"As listas suspensas de Projetos, Clientes, Categorias, Responsáveis e Departamentos são alimentadas pelos cadastros. Se você cadastrar tarefas antes de cadastrar projetos e equipe, as listas ficarão vazias. Sempre preencha de cima para baixo: Categorias → Clientes → Equipe → Projetos → Marcos → Tarefas → Horas → Financeiro."]
[{"$nulls":3},"4. SIGNIFICADO DOS CAMPOS PRINCIPAIS"]
[null,null,"•","ID — código único do registro. Nunca repita nem apague IDs já utilizados por outras abas."]
[null,null,"•","Status (projeto) — Planejamento, Em andamento, Pausado, Concluído, Cancelado."]
[null,null,"•","Status (tarefa) — Não iniciada, Em andamento, Concluída, Pausada, Cancelada, Aguardando."]
[null,null,"•","Prioridade — Baixa, Média, Alta, Crítica. Usada nos gráficos e no realce por cor."]
[null,null,"•","Data Início / Data Prevista — definem a barra do Gantt e o cálculo de Dias Previstos."]
[null,null,"•","Data Conclusão — preencha somente quando a tarefa terminar. Alimenta Dias Utilizados e a curva de entregas."]
[null,null,"•","Dias Previstos / Dias Utilizados — calculados automaticamente. Não digite nada nessas colunas."]
[null,null,"•","Horas Previstas — estimativa da tarefa (digitada por você)."]
[null,null,"•","Horas Trabalhadas — some dos apontamentos da aba 09. Serve de base para o percentual."]
[null,null,"•","Percentual — calculado: 100% se Concluída, 0% se Não iniciada/Cancelada, senão Horas Trabalhadas ÷ Horas Previstas."]
[null,null,"•","Dependência — informe o ID da tarefa que precisa terminar antes desta."]
[null,null,"•","Valor Previsto / Valor Real (aba 10) — orçado x efetivamente gasto. A Diferença é calculada."]
[{"$nulls":3},"5. COMO CADASTRAR PROJETOS (ABA 03)"]
[{"$nulls":3},"Clique na última linha da tabela e pressione TAB para criar uma nova linha — a Tabela Estruturada se expande sozinha e todas as fórmulas descem automaticamente. Preencha ID Projeto, Nome, Cliente, Categoria, Gestor, Responsável, datas, Status, Prioridade e Orçamento Previsto. As colunas Custo Atual, Horas Previstas, Horas Trabalhadas e Percentual Concluído são calculadas a partir das abas 08, 09 e 10 — não digite nelas."]
[{"$nulls":3},"6. COMO CADASTRAR EQUIPE (ABA 04)"]
[{"$nulls":3},"Informe ID, Nome, Cargo, Departamento, contato, Valor Hora e Carga Horária. O campo Nome alimenta as listas de Responsável em Tarefas e de Funcionário em Horas. O Valor Hora permite estimar custo de mão de obra por colaborador."]
[{"$nulls":3},"7. COMO CADASTRAR TAREFAS (ABA 08)"]
[{"$nulls":3},"Vincule cada tarefa a um Projeto (ID) e, quando aplicável, a um Marco. Preencha Título, Descrição, Responsável, Departamento, Prioridade, Status, Data Início, Data Prevista e Horas Previstas. As tarefas cadastradas aqui aparecem automaticamente na tabela do Gantt (aba 11), até o limite de 26 linhas pré-configuradas — para mais tarefas, copie as fórmulas da última linha do Gantt para baixo."]
[{"$nulls":3},"8. COMO ALTERAR STATUS"]
[{"$nulls":3},"Use sempre a lista suspensa da célula. Alterar o status recalcula na hora os KPIs do Dashboard, a cor da barra no Gantt e os Relatórios. Ao marcar uma tarefa como Concluída, preencha também a Data Conclusão — sem ela os indicadores de prazo ficam incompletos."]
[{"$nulls":3},"9. COMO ATUALIZAR O PROGRESSO"]
[{"$nulls":3},"Você não digita o percentual: registre as horas na aba 09 (um lançamento por dia/tarefa) e o percentual sobe automaticamente. Para dar por encerrada uma tarefa, mude o Status para Concluída — o percentual vai a 100% independentemente das horas."]
[{"$nulls":3},"10. COMO INTERPRETAR O DASHBOARD (ABA 02)"]
[null,null,"•","Faixa de Indicadores-Chave: 20 cartões com projetos, tarefas, horas, custos e desvios."]
[null,null,"•","Desvio Financeiro / Desvio de Horas: valor positivo significa estouro do previsto; negativo significa economia ou execução ainda em curso."]
[null,null,"•","% Orçamento Consumido: custo realizado ÷ orçamento previsto. Acima de 100% indica estouro."]
[null,null,"•","Cumprimento de Cronograma: proporção de tarefas que não estão atrasadas."]
[null,null,"•","Projetos em Risco: em andamento, com prazo em até 30 dias e menos de 80% concluídos."]
[null,null,"•","Segmentações: clique em um item para filtrar; CTRL+clique seleciona vários; use o ícone do funil para limpar."]
[{"$nulls":3},"11. COMO INTERPRETAR O GANTT (ABA 11)"]
[null,null,"•","A célula amarela 'Data base do cronograma' controla a janela exibida: 120 dias corridos a partir dela. Altere-a para navegar no tempo."]
[null,null,"•","Verde = Concluído | Vermelho = Atrasado | Amarelo = prazo vence em até 7 dias | Azul = Em andamento | Cinza = Não iniciado | Laranja = coluna do dia de hoje."]
[null,null,"•","As barras são geradas por Formatação Condicional comparando a data da coluna com as datas de início e fim da tarefa. Não pinte células manualmente."]
[null,null,"•","As colunas da tabela ficam congeladas: role para a direita para avançar no calendário sem perder os nomes das tarefas."]
[{"$nulls":3},"12. PERGUNTAS FREQUENTES"]
[null,null,"•","As listas suspensas estão vazias — falta preencher os cadastros das abas 04, 05, 06 e 03."]
[null,null,"•","Adicionei uma linha e as fórmulas não vieram — verifique se digitou dentro da Tabela Estruturada. Fora dela nada é calculado."]
[null,null,"•","O Dashboard não mudou — pressione F9 para recalcular; se usar Tabelas Dinâmicas, clique com o botão direito e escolha Atualizar."]
[null,null,"•","Os Relatórios estão desatualizados — na guia Dados, clique em 'Atualizar Tudo'."]
[null,null,"•","A barra não aparece no Gantt — confira se a tarefa tem Data Início e Data Prevista e se elas caem dentro da janela de 120 dias da data base."]
[null,null,"•","Meu projeto aparece como atrasado sem estar — confirme a Data Final Prevista e, se já terminou, preencha a Data Final Real e mude o Status para Concluído."]
[null,null,"•","Posso apagar as linhas de exemplo — sim. Selecione as linhas de dados (não o cabeçalho) e exclua; a estrutura, as validações e as fórmulas permanecem."]
[{"$nulls":3},"13. BOAS PRÁTICAS"]
[null,null,"•","Nunca edite a aba 13 - Cálculos: ela é o motor de todos os indicadores."]
[null,null,"•","Nunca use as colunas A e B nem as linhas 1 a 5 — são reservadas ao layout e à barra de navegação."]
[null,null,"•","Não apague cabeçalhos de tabela nem renomeie as tabelas estruturadas."]
[null,null,"•","Não digite em colunas calculadas (fundo já preenchido por fórmula): Dias, Percentual, Custo Atual, Diferença."]
[null,null,"•","Mantenha os IDs padronizados (PRJ-01, TRF-001, MRC-01) para facilitar buscas e vínculos."]
[null,null,"•","Registre horas diariamente — é o que mantém percentuais e produtividade confiáveis."]
[null,null,"•","Faça uma cópia de segurança do arquivo antes de exclusões em massa."]
[null,null,"•","Use texto azul para valores digitados e deixe em preto tudo que for calculado, seguindo o padrão já aplicado."]

{"sheet":"02 - Dashboard","index":1,"n_rows":46,"n_cols":12,"rows_kept":46,"hidden":true,"merged":[[6,2,6,13],[7,2,7,4],[7,5,7,7],[7,8,7,10],[7,11,7,13],[8,2,8,4],[8,5,8,7],[8,8,8,10],[8,11,8,13],[11,2,11,4],[11,5,11,7],[11,8,11,10],[11,11,11,13],[12,2,12,4],[12,5,12,7],[12,8,12,10],[12,11,12,13],[15,2,15,4],[15,5,15,7],[15,8,15,10],[15,11,15,13],[16,2,16,4],[16,5,16,7],[16,8,16,10],[16,11,16,13],[19,2,19,4],[19,5,19,7],[19,8,19,10],[19,11,19,13],[20,2,20,4],[20,5,20,7],[20,8,20,10],[20,11,20,13],[23,2,23,4],[23,5,23,7],[23,8,23,10],[23,11,23,13],[24,2,24,4],[24,5,24,7],[24,8,24,10],[24,11,24,13],[26,2,26,13],[45,2,45,13]]}
[]
[]
[]
[]
[]
[null,null,"DASHBOARD EXECUTIVO"]
[null,null,"INDICADORES-CHAVE"]
[null,null,"Projetos Ativos",null,null,"Projetos em Andamento",null,null,"Projetos Concluídos",null,null,"Projetos Atrasados"]
[null,null,{"$f":"'13 - Cálculos'!D15","v":5},null,null,{"$f":"'13 - Cálculos'!D11","v":3},null,null,{"$f":"'13 - Cálculos'!D13","v":1},null,null,{"$f":"'13 - Cálculos'!D16","v":3}]
[]
[]
[null,null,"Total de Tarefas",null,null,"Tarefas Concluídas",null,null,"Tarefas em Andamento",null,null,"Tarefas Pendentes"]
[null,null,{"$f":"'13 - Cálculos'!D23","v":26},null,null,{"$f":"'13 - Cálculos'!D26","v":9},null,null,{"$f":"'13 - Cálculos'!D25","v":5},null,null,{"$f":"'13 - Cálculos'!D30","v":12}]
[]
[]
[null,null,"Tarefas Atrasadas",null,null,"% Médio de Conclusão",null,null,"% Tarefas Atrasadas",null,null,"Tarefas Críticas Abertas"]
[null,null,{"$f":"'13 - Cálculos'!D31","v":14},null,null,{"$f":"'13 - Cálculos'!D20","v":{"v":0.46999389499389493,"d":"47.0%"}},null,null,{"$f":"'13 - Cálculos'!D33","v":{"v":0.5384615384615384,"d":"53.8%"}},null,null,{"$f":"'13 - Cálculos'!D32","v":4}]
[]
[]
[null,null,"Horas Previstas",null,null,"Horas Realizadas",null,null,"Custo Previsto",null,null,"Custo Realizado"]
[null,null,{"$f":"'13 - Cálculos'!D39","v":{"v":3600,"d":"3,600.00"}},null,null,{"$f":"'13 - Cálculos'!D40","v":{"v":2069,"d":"2,069.00"}},null,null,{"$f":"'13 - Cálculos'!D43","v":{"v":3300000,"d":"R$ 3,300,000"}},null,null,{"$f":"'13 - Cálculos'!D44","v":{"v":2542700,"d":"R$ 2,542,700"}}]
[]
[]
[null,null,"Desvio Financeiro",null,null,"Desvio de Prazo (dias)",null,null,"% Orçamento Consumido",null,null,"Cumprimento Cronograma"]
[null,null,{"$f":"'13 - Cálculos'!D46","v":{"v":-757300,"d":"(R$ 757,300)"}},null,null,{"$f":"'13 - Cálculos'!D51","v":{"v":-0.11111111111111072,"d":"-0.1"}},null,null,{"$f":"'13 - Cálculos'!D45","v":{"v":0.7705151515151515,"d":"77.1%"}},null,null,{"$f":"'13 - Cálculos'!D52","v":{"v":0.46153846153846156,"d":"46.2%"}}]
[]
[null,null,"FILTROS (SEGMENTAÇÕES) — aplicam-se às tabelas de origem"]
{"$rows_empty":18}
[null,null,"GRÁFICOS"]

{"sheet":"03 - Projetos","index":2,"n_rows":13,"n_cols":19,"rows_kept":13,"hidden":true}
[]
[]
[]
[]
[]
[null,null,"CADASTRO DE PROJETOS"]
[null,null,"ID Projeto","Nome Projeto","Cliente","Categoria","Gestor","Responsável Principal","Data Início","Data Final Prevista","Data Final Real","Status","Prioridade","Orçamento Previsto","Custo Atual","Horas Previstas","Horas Trabalhadas","Percentual Concluído","Observações"]
[null,null,"PRJ-01","Implantação ERP Corporativo","Alfa Indústria","TI","Ana Beatriz Costa","Bruno Martins","2026-01-05","2026-09-30",null,"Em andamento","Crítica",{"v":480000,"d":"R$ 480,000"},{"$f":"SUMIFS(tblFinanceiro[Valor Real],tblFinanceiro[Projeto],tblProjetos[[#This Row],[ID Projeto]],tblFinanceiro[Tipo],\"Despesa\")+SUMIFS(tblFinanceiro[Valor Real],tblFinanceiro[Projeto],tblProjetos[[#This Row],[ID Projeto]],tblFinanceiro[Tipo],\"Investimento\")","v":{"v":417800,"d":"R$ 417,800"}},{"$f":"SUMIFS(tblTarefas[Horas Previstas],tblTarefas[Projeto],tblProjetos[[#This Row],[ID Projeto]])","v":{"v":960,"d":"960.00"}},{"$f":"SUMIFS(tblTarefas[Horas Trabalhadas],tblTarefas[Projeto],tblProjetos[[#This Row],[ID Projeto]])","v":{"v":460,"d":"460.00"}},{"$f":"IFERROR(AVERAGEIFS(tblTarefas[Percentual],tblTarefas[Projeto],tblProjetos[[#This Row],[ID Projeto]]),0)","v":{"v":0.48214285714285715,"d":"48.2%"}},"Fase de integração"]
[null,null,"PRJ-02","Campanha Institucional 2026","Beta Varejo","Marketing","Ana Beatriz Costa","Carla Nogueira","2026-02-02","2026-07-31",null,"Em andamento","Alta",{"v":150000,"d":"R$ 150,000"},{"$f":"SUMIFS(tblFinanceiro[Valor Real],tblFinanceiro[Projeto],tblProjetos[[#This Row],[ID Projeto]],tblFinanceiro[Tipo],\"Despesa\")+SUMIFS(tblFinanceiro[Valor Real],tblFinanceiro[Projeto],tblProjetos[[#This Row],[ID Projeto]],tblFinanceiro[Tipo],\"Investimento\")","v":{"v":108000,"d":"R$ 108,000"}},{"$f":"SUMIFS(tblTarefas[Horas Previstas],tblTarefas[Projeto],tblProjetos[[#This Row],[ID Projeto]])","v":{"v":520,"d":"520.00"}},{"$f":"SUMIFS(tblTarefas[Horas Trabalhadas],tblTarefas[Projeto],tblProjetos[[#This Row],[ID Projeto]])","v":{"v":304,"d":"304.00"}},{"$f":"IFERROR(AVERAGEIFS(tblTarefas[Percentual],tblTarefas[Projeto],tblProjetos[[#This Row],[ID Projeto]]),0)","v":{"v":0.5416666666666666,"d":"54.2%"}},"Lançamento em julho"]
[null,null,"PRJ-03","Obra Centro de Distribuição","Gama Construtora","Construção","Ana Beatriz Costa","Diego Ferreira","2025-11-10","2026-06-30",null,"Em andamento","Crítica",{"v":2200000,"d":"R$ 2,200,000"},{"$f":"SUMIFS(tblFinanceiro[Valor Real],tblFinanceiro[Projeto],tblProjetos[[#This Row],[ID Projeto]],tblFinanceiro[Tipo],\"Despesa\")+SUMIFS(tblFinanceiro[Valor Real],tblFinanceiro[Projeto],tblProjetos[[#This Row],[ID Projeto]],tblFinanceiro[Tipo],\"Investimento\")","v":{"v":1918500,"d":"R$ 1,918,500"}},{"$f":"SUMIFS(tblTarefas[Horas Previstas],tblTarefas[Projeto],tblProjetos[[#This Row],[ID Projeto]])","v":{"v":1460,"d":"1,460.00"}},{"$f":"SUMIFS(tblTarefas[Horas Trabalhadas],tblTarefas[Projeto],tblProjetos[[#This Row],[ID Projeto]])","v":{"v":1045,"d":"1,045.00"}},{"$f":"IFERROR(AVERAGEIFS(tblTarefas[Percentual],tblTarefas[Projeto],tblProjetos[[#This Row],[ID Projeto]]),0)","v":{"v":0.5461538461538462,"d":"54.6%"}},"Fase 2 estrutura"]
[null,null,"PRJ-04","Reestruturação Orçamentária","Delta Serviços","Financeiro","Ana Beatriz Costa","Eduarda Pires","2026-01-15","2026-04-30","2026-04-28","Concluído","Média",{"v":90000,"d":"R$ 90,000"},{"$f":"SUMIFS(tblFinanceiro[Valor Real],tblFinanceiro[Projeto],tblProjetos[[#This Row],[ID Projeto]],tblFinanceiro[Tipo],\"Despesa\")+SUMIFS(tblFinanceiro[Valor Real],tblFinanceiro[Projeto],tblProjetos[[#This Row],[ID Projeto]],tblFinanceiro[Tipo],\"Investimento\")","v":{"v":86400,"d":"R$ 86,400"}},{"$f":"SUMIFS(tblTarefas[Horas Previstas],tblTarefas[Projeto],tblProjetos[[#This Row],[ID Projeto]])","v":{"v":250,"d":"250.00"}},{"$f":"SUMIFS(tblTarefas[Horas Trabalhadas],tblTarefas[Projeto],tblProjetos[[#This Row],[ID Projeto]])","v":{"v":230,"d":"230.00"}},{"$f":"IFERROR(AVERAGEIFS(tblTarefas[Percentual],tblTarefas[Projeto],tblProjetos[[#This Row],[ID Projeto]]),0)","v":{"v":1,"d":"100.0%"}},"Entregue no prazo"]
[null,null,"PRJ-05","Programa de Treinamento Interno","Épsilon Saúde","RH","Ana Beatriz Costa","Gabriela Rocha","2026-03-01","2026-05-31",null,"Pausado","Baixa",{"v":60000,"d":"R$ 60,000"},{"$f":"SUMIFS(tblFinanceiro[Valor Real],tblFinanceiro[Projeto],tblProjetos[[#This Row],[ID Projeto]],tblFinanceiro[Tipo],\"Despesa\")+SUMIFS(tblFinanceiro[Valor Real],tblFinanceiro[Projeto],tblProjetos[[#This Row],[ID Projeto]],tblFinanceiro[Tipo],\"Investimento\")","v":{"v":12000,"d":"R$ 12,000"}},{"$f":"SUMIFS(tblTarefas[Horas Previstas],tblTarefas[Projeto],tblProjetos[[#This Row],[ID Projeto]])","v":{"v":110,"d":"110.00"}},{"$f":"SUMIFS(tblTarefas[Horas Trabalhadas],tblTarefas[Projeto],tblProjetos[[#This Row],[ID Projeto]])","v":{"v":30,"d":"30.00"}},{"$f":"IFERROR(AVERAGEIFS(tblTarefas[Percentual],tblTarefas[Projeto],tblProjetos[[#This Row],[ID Projeto]]),0)","v":{"v":0.25,"d":"25.0%"}},"Aguardando verba"]
[null,null,"PRJ-06","Portal de Autoatendimento","Alfa Indústria","Desenvolvimento","Ana Beatriz Costa","Felipe Andrade","2026-06-01","2026-12-31",null,"Planejamento","Alta",{"v":320000,"d":"R$ 320,000"},{"$f":"SUMIFS(tblFinanceiro[Valor Real],tblFinanceiro[Projeto],tblProjetos[[#This Row],[ID Projeto]],tblFinanceiro[Tipo],\"Despesa\")+SUMIFS(tblFinanceiro[Valor Real],tblFinanceiro[Projeto],tblProjetos[[#This Row],[ID Projeto]],tblFinanceiro[Tipo],\"Investimento\")","v":0},{"$f":"SUMIFS(tblTarefas[Horas Previstas],tblTarefas[Projeto],tblProjetos[[#This Row],[ID Projeto]])","v":{"v":300,"d":"300.00"}},{"$f":"SUMIFS(tblTarefas[Horas Trabalhadas],tblTarefas[Projeto],tblProjetos[[#This Row],[ID Projeto]])","v":{"v":0,"d":"0.00"}},{"$f":"IFERROR(AVERAGEIFS(tblTarefas[Percentual],tblTarefas[Projeto],tblProjetos[[#This Row],[ID Projeto]]),0)","v":{"v":0,"d":"0.0%"}},"Kickoff em junho"]

{"sheet":"04 - Equipe","index":3,"n_rows":15,"n_cols":12,"rows_kept":15,"hidden":true}
[]
[]
[]
[]
[]
[null,null,"CADASTRO DE EQUIPE"]
[null,null,"ID","Nome","Cargo","Departamento","Email","Telefone","Valor Hora","Carga Horária","Status","Observações"]
[null,null,"FUN-01","Ana Beatriz Costa","Gerente de Projetos","PMO","ana.costa@empresa.com","(11) 98100-1001",{"v":180,"d":"R$ 180.00"},{"v":44,"d":"44.00"},"Ativo","Certificação PMP"]
[null,null,"FUN-02","Bruno Martins","Analista de Sistemas","TI","bruno.martins@empresa.com","(11) 98100-1002",{"v":95,"d":"R$ 95.00"},{"v":44,"d":"44.00"},"Ativo"]
[null,null,"FUN-03","Carla Nogueira","Designer","Marketing","carla.nogueira@empresa.com","(11) 98100-1003",{"v":85,"d":"R$ 85.00"},{"v":40,"d":"40.00"},"Ativo"]
[null,null,"FUN-04","Diego Ferreira","Engenheiro Civil","Engenharia","diego.ferreira@empresa.com","(11) 98100-1004",{"v":150,"d":"R$ 150.00"},{"v":44,"d":"44.00"},"Ativo"]
[null,null,"FUN-05","Eduarda Pires","Analista Financeiro","Financeiro","eduarda.pires@empresa.com","(11) 98100-1005",{"v":110,"d":"R$ 110.00"},{"v":44,"d":"44.00"},"Ativo"]
[null,null,"FUN-06","Felipe Andrade","Desenvolvedor","TI","felipe.andrade@empresa.com","(11) 98100-1006",{"v":100,"d":"R$ 100.00"},{"v":44,"d":"44.00"},"Ativo"]
[null,null,"FUN-07","Gabriela Rocha","Analista de RH","RH","gabriela.rocha@empresa.com","(11) 98100-1007",{"v":90,"d":"R$ 90.00"},{"v":40,"d":"40.00"},"Ativo"]
[null,null,"FUN-08","Henrique Dias","Consultor Comercial","Comercial","henrique.dias@empresa.com","(11) 98100-1008",{"v":120,"d":"R$ 120.00"},{"v":44,"d":"44.00"},"Férias"]

{"sheet":"05 - Clientes","index":4,"n_rows":12,"n_cols":12,"rows_kept":12,"hidden":true}
[]
[]
[]
[]
[]
[null,null,"CADASTRO DE CLIENTES"]
[null,null,"ID","Empresa","Contato","Telefone","Email","Cidade","Estado","Categoria","Status","Observações"]
[null,null,"CLI-01","Alfa Indústria","Marcos Prado","(11) 98811-2020","marcos@alfa.com.br","São Paulo","SP","TI","Ativo","Contrato anual"]
[null,null,"CLI-02","Beta Varejo","Fernanda Lima","(21) 97722-3131","fernanda@beta.com.br","Rio de Janeiro","RJ","Marketing","Ativo","Cliente recorrente"]
[null,null,"CLI-03","Gama Construtora","Ricardo Souza","(31) 96633-4242","ricardo@gama.com.br","Belo Horizonte","MG","Construção","Ativo","Obra em fase 2"]
[null,null,"CLI-04","Delta Serviços","Juliana Alves","(41) 95544-5353","juliana@delta.com.br","Curitiba","PR","Financeiro","Ativo","Novo cliente"]
[null,null,"CLI-05","Épsilon Saúde","Paulo Ramos","(51) 94455-6464","paulo@epsilon.com.br","Porto Alegre","RS","RH","Inativo","Contrato encerrado"]

{"sheet":"06 - Categorias","index":5,"n_rows":15,"n_cols":6,"rows_kept":15,"hidden":true}
[]
[]
[]
[]
[]
[null,null,"CADASTRO DE CATEGORIAS"]
[null,null,"ID","Categoria","Descrição","Status"]
[null,null,"CAT-01","Marketing","Campanhas, marca e comunicação","Ativa"]
[null,null,"CAT-02","TI","Sistemas, infraestrutura e software","Ativa"]
[null,null,"CAT-03","Construção","Obras e reformas","Ativa"]
[null,null,"CAT-04","Financeiro","Projetos financeiros e controladoria","Ativa"]
[null,null,"CAT-05","RH","Pessoas, cultura e treinamento","Ativa"]
[null,null,"CAT-06","Comercial","Vendas e expansão","Ativa"]
[null,null,"CAT-07","Pesquisa","Estudos e P&D","Ativa"]
[null,null,"CAT-08","Desenvolvimento","Produtos e novas soluções","Ativa"]

{"sheet":"07 - Marcos","index":6,"n_rows":19,"n_cols":9,"rows_kept":19,"hidden":true}
[]
[]
[]
[]
[]
[null,null,"CADASTRO DE MARCOS (MILESTONES)"]
[null,null,"ID","Projeto","Marco","Data Prevista","Data Real","Status","Observações"]
[null,null,"MRC-01","PRJ-01","Levantamento de requisitos concluído","2026-02-13T00:00:00.000Z","2026-02-16T00:00:00.000Z","Concluído","Atraso de 3 dias"]
[null,null,"MRC-02","PRJ-01","Parametrização dos módulos","2026-05-15T00:00:00.000Z",null,"Em andamento"]
[null,null,"MRC-03","PRJ-01","Go-live do sistema","2026-09-15T00:00:00.000Z",null,"Não iniciado"]
[null,null,"MRC-04","PRJ-02","Conceito criativo aprovado","2026-03-13T00:00:00.000Z","2026-03-11T00:00:00.000Z","Concluído"]
[null,null,"MRC-05","PRJ-02","Produção das peças","2026-05-29T00:00:00.000Z",null,"Em andamento"]
[null,null,"MRC-06","PRJ-02","Veiculação da campanha","2026-07-15T00:00:00.000Z",null,"Não iniciado"]
[null,null,"MRC-07","PRJ-03","Fundação concluída","2026-02-27T00:00:00.000Z","2026-03-06T00:00:00.000Z","Concluído","Chuvas atrasaram"]
[null,null,"MRC-08","PRJ-03","Estrutura metálica","2026-05-29T00:00:00.000Z",null,"Em andamento"]
[null,null,"MRC-09","PRJ-03","Entrega da obra","2026-06-30T00:00:00.000Z",null,"Não iniciado"]
[null,null,"MRC-10","PRJ-04","Novo orçamento aprovado","2026-04-28T00:00:00.000Z","2026-04-28T00:00:00.000Z","Concluído"]
[null,null,"MRC-11","PRJ-05","Trilhas de treinamento definidas","2026-04-10T00:00:00.000Z",null,"Pausado"]
[null,null,"MRC-12","PRJ-06","Escopo do portal aprovado","2026-06-30T00:00:00.000Z",null,"Não iniciado"]

{"sheet":"08 - Tarefas","index":7,"n_rows":33,"n_cols":22,"rows_kept":33,"hidden":true}
[]
[]
[]
[]
[]
[null,null,"CONTROLE GERAL DE TAREFAS"]
[null,null,"ID","Projeto","Marco","Título","Descrição","Responsável","Departamento","Prioridade","Status","Data Criação","Data Início","Data Prevista","Data Conclusão","Dias Previstos","Dias Utilizados","Horas Previstas","Horas Trabalhadas","Percentual","Dependência","Observações"]
[null,null,"TRF-001","PRJ-01","MRC-01","Mapear processos atuais","Entrevistas com áreas usuárias","Bruno Martins","TI","Alta","Concluída","2026-01-05","2026-01-05","2026-01-23","2026-01-22",{"$f":"IF(COUNT(tblTarefas[[#This Row],[Data Início]],tblTarefas[[#This Row],[Data Prevista]])<2,\"\",tblTarefas[[#This Row],[Data Prevista]]-tblTarefas[[#This Row],[Data Início]]+1)","v":19},{"$f":"IF(COUNT(tblTarefas[[#This Row],[Data Início]])=0,\"\",IF(COUNT(tblTarefas[[#This Row],[Data Conclusão]])=1,tblTarefas[[#This Row],[Data Conclusão]]-tblTarefas[[#This Row],[Data Início]]+1,MAX(0,TODAY()-tblTarefas[[#This Row],[Data Início]]+1)))","v":18},{"v":120,"d":"120.00"},{"v":118,"d":"118.00"},{"$f":"IF(tblTarefas[[#This Row],[Status]]=\"Concluída\",1,IF(OR(tblTarefas[[#This Row],[Status]]=\"Não iniciada\",tblTarefas[[#This Row],[Status]]=\"Cancelada\"),0,IF(tblTarefas[[#This Row],[Horas Previstas]]=0,0,MIN(1,tblTarefas[[#This Row],[Horas Trabalhadas]]/tblTarefas[[#This Row],[Horas Previstas]]))))","v":{"v":1,"d":"100.0%"}}]
[null,null,"TRF-002","PRJ-01","MRC-01","Documentar requisitos","Especificação funcional","Bruno Martins","TI","Alta","Concluída","2026-01-05","2026-01-26","2026-02-13","2026-02-16",{"$f":"IF(COUNT(tblTarefas[[#This Row],[Data Início]],tblTarefas[[#This Row],[Data Prevista]])<2,\"\",tblTarefas[[#This Row],[Data Prevista]]-tblTarefas[[#This Row],[Data Início]]+1)","v":19},{"$f":"IF(COUNT(tblTarefas[[#This Row],[Data Início]])=0,\"\",IF(COUNT(tblTarefas[[#This Row],[Data Conclusão]])=1,tblTarefas[[#This Row],[Data Conclusão]]-tblTarefas[[#This Row],[Data Início]]+1,MAX(0,TODAY()-tblTarefas[[#This Row],[Data Início]]+1)))","v":22},{"v":100,"d":"100.00"},{"v":112,"d":"112.00"},{"$f":"IF(tblTarefas[[#This Row],[Status]]=\"Concluída\",1,IF(OR(tblTarefas[[#This Row],[Status]]=\"Não iniciada\",tblTarefas[[#This Row],[Status]]=\"Cancelada\"),0,IF(tblTarefas[[#This Row],[Horas Previstas]]=0,0,MIN(1,tblTarefas[[#This Row],[Horas Trabalhadas]]/tblTarefas[[#This Row],[Horas Previstas]]))))","v":{"v":1,"d":"100.0%"}},"TRF-001"]
[null,null,"TRF-003","PRJ-01","MRC-02","Parametrizar módulo financeiro","Configuração de contas","Eduarda Pires","Financeiro","Crítica","Em andamento","2026-02-10","2026-02-17","2026-04-10",null,{"$f":"IF(COUNT(tblTarefas[[#This Row],[Data Início]],tblTarefas[[#This Row],[Data Prevista]])<2,\"\",tblTarefas[[#This Row],[Data Prevista]]-tblTarefas[[#This Row],[Data Início]]+1)","v":53},{"$f":"IF(COUNT(tblTarefas[[#This Row],[Data Início]])=0,\"\",IF(COUNT(tblTarefas[[#This Row],[Data Conclusão]])=1,tblTarefas[[#This Row],[Data Conclusão]]-tblTarefas[[#This Row],[Data Início]]+1,MAX(0,TODAY()-tblTarefas[[#This Row],[Data Início]]+1)))","v":178},{"v":160,"d":"160.00"},{"v":140,"d":"140.00"},{"$f":"IF(tblTarefas[[#This Row],[Status]]=\"Concluída\",1,IF(OR(tblTarefas[[#This Row],[Status]]=\"Não iniciada\",tblTarefas[[#This Row],[Status]]=\"Cancelada\"),0,IF(tblTarefas[[#This Row],[Horas Previstas]]=0,0,MIN(1,tblTarefas[[#This Row],[Horas Trabalhadas]]/tblTarefas[[#This Row],[Horas Previstas]]))))","v":{"v":0.875,"d":"87.5%"}},"TRF-002"]
[null,null,"TRF-004","PRJ-01","MRC-02","Parametrizar módulo estoque","Configuração de itens","Bruno Martins","TI","Alta","Em andamento","2026-02-10","2026-03-02","2026-05-15",null,{"$f":"IF(COUNT(tblTarefas[[#This Row],[Data Início]],tblTarefas[[#This Row],[Data Prevista]])<2,\"\",tblTarefas[[#This Row],[Data Prevista]]-tblTarefas[[#This Row],[Data Início]]+1)","v":75},{"$f":"IF(COUNT(tblTarefas[[#This Row],[Data Início]])=0,\"\",IF(COUNT(tblTarefas[[#This Row],[Data Conclusão]])=1,tblTarefas[[#This Row],[Data Conclusão]]-tblTarefas[[#This Row],[Data Início]]+1,MAX(0,TODAY()-tblTarefas[[#This Row],[Data Início]]+1)))","v":165},{"v":180,"d":"180.00"},{"v":90,"d":"90.00"},{"$f":"IF(tblTarefas[[#This Row],[Status]]=\"Concluída\",1,IF(OR(tblTarefas[[#This Row],[Status]]=\"Não iniciada\",tblTarefas[[#This Row],[Status]]=\"Cancelada\"),0,IF(tblTarefas[[#This Row],[Horas Previstas]]=0,0,MIN(1,tblTarefas[[#This Row],[Horas Trabalhadas]]/tblTarefas[[#This Row],[Horas Previstas]]))))","v":{"v":0.5,"d":"50.0%"}},"TRF-002"]
[null,null,"TRF-005","PRJ-01","MRC-02","Migração de dados legados","Carga e validação","Felipe Andrade","TI","Crítica","Não iniciada","2026-02-10","2026-06-01","2026-07-31",null,{"$f":"IF(COUNT(tblTarefas[[#This Row],[Data Início]],tblTarefas[[#This Row],[Data Prevista]])<2,\"\",tblTarefas[[#This Row],[Data Prevista]]-tblTarefas[[#This Row],[Data Início]]+1)","v":61},{"$f":"IF(COUNT(tblTarefas[[#This Row],[Data Início]])=0,\"\",IF(COUNT(tblTarefas[[#This Row],[Data Conclusão]])=1,tblTarefas[[#This Row],[Data Conclusão]]-tblTarefas[[#This Row],[Data Início]]+1,MAX(0,TODAY()-tblTarefas[[#This Row],[Data Início]]+1)))","v":74},{"v":200,"d":"200.00"},{"v":0,"d":"0.00"},{"$f":"IF(tblTarefas[[#This Row],[Status]]=\"Concluída\",1,IF(OR(tblTarefas[[#This Row],[Status]]=\"Não iniciada\",tblTarefas[[#This Row],[Status]]=\"Cancelada\"),0,IF(tblTarefas[[#This Row],[Horas Previstas]]=0,0,MIN(1,tblTarefas[[#This Row],[Horas Trabalhadas]]/tblTarefas[[#This Row],[Horas Previstas]]))))","v":{"v":0,"d":"0.0%"}},"TRF-004"]
[null,null,"TRF-006","PRJ-01","MRC-03","Treinamento de usuários","Turmas por área","Gabriela Rocha","RH","Média","Não iniciada","2026-02-10","2026-08-03","2026-08-28",null,{"$f":"IF(COUNT(tblTarefas[[#This Row],[Data Início]],tblTarefas[[#This Row],[Data Prevista]])<2,\"\",tblTarefas[[#This Row],[Data Prevista]]-tblTarefas[[#This Row],[Data Início]]+1)","v":26},{"$f":"IF(COUNT(tblTarefas[[#This Row],[Data Início]])=0,\"\",IF(COUNT(tblTarefas[[#This Row],[Data Conclusão]])=1,tblTarefas[[#This Row],[Data Conclusão]]-tblTarefas[[#This Row],[Data Início]]+1,MAX(0,TODAY()-tblTarefas[[#This Row],[Data Início]]+1)))","v":11},{"v":80,"d":"80.00"},{"v":0,"d":"0.00"},{"$f":"IF(tblTarefas[[#This Row],[Status]]=\"Concluída\",1,IF(OR(tblTarefas[[#This Row],[Status]]=\"Não iniciada\",tblTarefas[[#This Row],[Status]]=\"Cancelada\"),0,IF(tblTarefas[[#This Row],[Horas Previstas]]=0,0,MIN(1,tblTarefas[[#This Row],[Horas Trabalhadas]]/tblTarefas[[#This Row],[Horas Previstas]]))))","v":{"v":0,"d":"0.0%"}},"TRF-005"]
[null,null,"TRF-007","PRJ-01","MRC-03","Go-live e suporte","Acompanhamento pós-virada","Bruno Martins","TI","Crítica","Não iniciada","2026-02-10","2026-08-31","2026-09-30",null,{"$f":"IF(COUNT(tblTarefas[[#This Row],[Data Início]],tblTarefas[[#This Row],[Data Prevista]])<2,\"\",tblTarefas[[#This Row],[Data Prevista]]-tblTarefas[[#This Row],[Data Início]]+1)","v":31},{"$f":"IF(COUNT(tblTarefas[[#This Row],[Data Início]])=0,\"\",IF(COUNT(tblTarefas[[#This Row],[Data Conclusão]])=1,tblTarefas[[#This Row],[Data Conclusão]]-tblTarefas[[#This Row],[Data Início]]+1,MAX(0,TODAY()-tblTarefas[[#This Row],[Data Início]]+1)))","v":0},{"v":120,"d":"120.00"},{"v":0,"d":"0.00"},{"$f":"IF(tblTarefas[[#This Row],[Status]]=\"Concluída\",1,IF(OR(tblTarefas[[#This Row],[Status]]=\"Não iniciada\",tblTarefas[[#This Row],[Status]]=\"Cancelada\"),0,IF(tblTarefas[[#This Row],[Horas Previstas]]=0,0,MIN(1,tblTarefas[[#This Row],[Horas Trabalhadas]]/tblTarefas[[#This Row],[Horas Previstas]]))))","v":{"v":0,"d":"0.0%"}},"TRF-006"]
[null,null,"TRF-008","PRJ-02","MRC-04","Briefing com cliente","Alinhamento de objetivos","Carla Nogueira","Marketing","Média","Concluída","2026-02-02","2026-02-02","2026-02-13","2026-02-12",{"$f":"IF(COUNT(tblTarefas[[#This Row],[Data Início]],tblTarefas[[#This Row],[Data Prevista]])<2,\"\",tblTarefas[[#This Row],[Data Prevista]]-tblTarefas[[#This Row],[Data Início]]+1)","v":12},{"$f":"IF(COUNT(tblTarefas[[#This Row],[Data Início]])=0,\"\",IF(COUNT(tblTarefas[[#This Row],[Data Conclusão]])=1,tblTarefas[[#This Row],[Data Conclusão]]-tblTarefas[[#This Row],[Data Início]]+1,MAX(0,TODAY()-tblTarefas[[#This Row],[Data Início]]+1)))","v":11},{"v":40,"d":"40.00"},{"v":38,"d":"38.00"},{"$f":"IF(tblTarefas[[#This Row],[Status]]=\"Concluída\",1,IF(OR(tblTarefas[[#This Row],[Status]]=\"Não iniciada\",tblTarefas[[#This Row],[Status]]=\"Cancelada\"),0,IF(tblTarefas[[#This Row],[Horas Previstas]]=0,0,MIN(1,tblTarefas[[#This Row],[Horas Trabalhadas]]/tblTarefas[[#This Row],[Horas Previstas]]))))","v":{"v":1,"d":"100.0%"}}]
[null,null,"TRF-009","PRJ-02","MRC-04","Desenvolver conceito criativo","Rotas criativas","Carla Nogueira","Marketing","Alta","Concluída","2026-02-02","2026-02-16","2026-03-13","2026-03-11",{"$f":"IF(COUNT(tblTarefas[[#This Row],[Data Início]],tblTarefas[[#This Row],[Data Prevista]])<2,\"\",tblTarefas[[#This Row],[Data Prevista]]-tblTarefas[[#This Row],[Data Início]]+1)","v":26},{"$f":"IF(COUNT(tblTarefas[[#This Row],[Data Início]])=0,\"\",IF(COUNT(tblTarefas[[#This Row],[Data Conclusão]])=1,tblTarefas[[#This Row],[Data Conclusão]]-tblTarefas[[#This Row],[Data Início]]+1,MAX(0,TODAY()-tblTarefas[[#This Row],[Data Início]]+1)))","v":24},{"v":90,"d":"90.00"},{"v":86,"d":"86.00"},{"$f":"IF(tblTarefas[[#This Row],[Status]]=\"Concluída\",1,IF(OR(tblTarefas[[#This Row],[Status]]=\"Não iniciada\",tblTarefas[[#This Row],[Status]]=\"Cancelada\"),0,IF(tblTarefas[[#This Row],[Horas Previstas]]=0,0,MIN(1,tblTarefas[[#This Row],[Horas Trabalhadas]]/tblTarefas[[#This Row],[Horas Previstas]]))))","v":{"v":1,"d":"100.0%"}},"TRF-008"]
[null,null,"TRF-010","PRJ-02","MRC-05","Produzir peças gráficas","KV e adaptações","Carla Nogueira","Marketing","Alta","Em andamento","2026-03-10","2026-03-16","2026-05-29",null,{"$f":"IF(COUNT(tblTarefas[[#This Row],[Data Início]],tblTarefas[[#This Row],[Data Prevista]])<2,\"\",tblTarefas[[#This Row],[Data Prevista]]-tblTarefas[[#This Row],[Data Início]]+1)","v":75},{"$f":"IF(COUNT(tblTarefas[[#This Row],[Data Início]])=0,\"\",IF(COUNT(tblTarefas[[#This Row],[Data Conclusão]])=1,tblTarefas[[#This Row],[Data Conclusão]]-tblTarefas[[#This Row],[Data Início]]+1,MAX(0,TODAY()-tblTarefas[[#This Row],[Data Início]]+1)))","v":151},{"v":160,"d":"160.00"},{"v":120,"d":"120.00"},{"$f":"IF(tblTarefas[[#This Row],[Status]]=\"Concluída\",1,IF(OR(tblTarefas[[#This Row],[Status]]=\"Não iniciada\",tblTarefas[[#This Row],[Status]]=\"Cancelada\"),0,IF(tblTarefas[[#This Row],[Horas Previstas]]=0,0,MIN(1,tblTarefas[[#This Row],[Horas Trabalhadas]]/tblTarefas[[#This Row],[Horas Previstas]]))))","v":{"v":0.75,"d":"75.0%"}},"TRF-009"]
[null,null,"TRF-011","PRJ-02","MRC-05","Produzir vídeo institucional","Roteiro, gravação e edição","Carla Nogueira","Marketing","Média","Em andamento","2026-03-10","2026-04-06","2026-06-15",null,{"$f":"IF(COUNT(tblTarefas[[#This Row],[Data Início]],tblTarefas[[#This Row],[Data Prevista]])<2,\"\",tblTarefas[[#This Row],[Data Prevista]]-tblTarefas[[#This Row],[Data Início]]+1)","v":71},{"$f":"IF(COUNT(tblTarefas[[#This Row],[Data Início]])=0,\"\",IF(COUNT(tblTarefas[[#This Row],[Data Conclusão]])=1,tblTarefas[[#This Row],[Data Conclusão]]-tblTarefas[[#This Row],[Data Início]]+1,MAX(0,TODAY()-tblTarefas[[#This Row],[Data Início]]+1)))","v":130},{"v":120,"d":"120.00"},{"v":60,"d":"60.00"},{"$f":"IF(tblTarefas[[#This Row],[Status]]=\"Concluída\",1,IF(OR(tblTarefas[[#This Row],[Status]]=\"Não iniciada\",tblTarefas[[#This Row],[Status]]=\"Cancelada\"),0,IF(tblTarefas[[#This Row],[Horas Previstas]]=0,0,MIN(1,tblTarefas[[#This Row],[Horas Trabalhadas]]/tblTarefas[[#This Row],[Horas Previstas]]))))","v":{"v":0.5,"d":"50.0%"}},"TRF-009"]
[null,null,"TRF-012","PRJ-02","MRC-06","Plano de mídia","Definição de canais e verba","Henrique Dias","Comercial","Média","Aguardando","2026-03-10","2026-06-01","2026-06-26",null,{"$f":"IF(COUNT(tblTarefas[[#This Row],[Data Início]],tblTarefas[[#This Row],[Data Prevista]])<2,\"\",tblTarefas[[#This Row],[Data Prevista]]-tblTarefas[[#This Row],[Data Início]]+1)","v":26},{"$f":"IF(COUNT(tblTarefas[[#This Row],[Data Início]])=0,\"\",IF(COUNT(tblTarefas[[#This Row],[Data Conclusão]])=1,tblTarefas[[#This Row],[Data Conclusão]]-tblTarefas[[#This Row],[Data Início]]+1,MAX(0,TODAY()-tblTarefas[[#This Row],[Data Início]]+1)))","v":74},{"v":50,"d":"50.00"},{"v":0,"d":"0.00"},{"$f":"IF(tblTarefas[[#This Row],[Status]]=\"Concluída\",1,IF(OR(tblTarefas[[#This Row],[Status]]=\"Não iniciada\",tblTarefas[[#This Row],[Status]]=\"Cancelada\"),0,IF(tblTarefas[[#This Row],[Horas Previstas]]=0,0,MIN(1,tblTarefas[[#This Row],[Horas Trabalhadas]]/tblTarefas[[#This Row],[Horas Previstas]]))))","v":{"v":0,"d":"0.0%"}},"TRF-010"]
[null,null,"TRF-013","PRJ-02","MRC-06","Veicular campanha","Ativação nos canais","Henrique Dias","Comercial","Alta","Não iniciada","2026-03-10","2026-07-01","2026-07-31",null,{"$f":"IF(COUNT(tblTarefas[[#This Row],[Data Início]],tblTarefas[[#This Row],[Data Prevista]])<2,\"\",tblTarefas[[#This Row],[Data Prevista]]-tblTarefas[[#This Row],[Data Início]]+1)","v":31},{"$f":"IF(COUNT(tblTarefas[[#This Row],[Data Início]])=0,\"\",IF(COUNT(tblTarefas[[#This Row],[Data Conclusão]])=1,tblTarefas[[#This Row],[Data Conclusão]]-tblTarefas[[#This Row],[Data Início]]+1,MAX(0,TODAY()-tblTarefas[[#This Row],[Data Início]]+1)))","v":44},{"v":60,"d":"60.00"},{"v":0,"d":"0.00"},{"$f":"IF(tblTarefas[[#This Row],[Status]]=\"Concluída\",1,IF(OR(tblTarefas[[#This Row],[Status]]=\"Não iniciada\",tblTarefas[[#This Row],[Status]]=\"Cancelada\"),0,IF(tblTarefas[[#This Row],[Horas Previstas]]=0,0,MIN(1,tblTarefas[[#This Row],[Horas Trabalhadas]]/tblTarefas[[#This Row],[Horas Previstas]]))))","v":{"v":0,"d":"0.0%"}},"TRF-012"]
[null,null,"TRF-014","PRJ-03","MRC-07","Terraplanagem","Preparação do terreno","Diego Ferreira","Engenharia","Alta","Concluída","2025-11-10","2025-11-10","2025-12-19","2025-12-18",{"$f":"IF(COUNT(tblTarefas[[#This Row],[Data Início]],tblTarefas[[#This Row],[Data Prevista]])<2,\"\",tblTarefas[[#This Row],[Data Prevista]]-tblTarefas[[#This Row],[Data Início]]+1)","v":40},{"$f":"IF(COUNT(tblTarefas[[#This Row],[Data Início]])=0,\"\",IF(COUNT(tblTarefas[[#This Row],[Data Conclusão]])=1,tblTarefas[[#This Row],[Data Conclusão]]-tblTarefas[[#This Row],[Data Início]]+1,MAX(0,TODAY()-tblTarefas[[#This Row],[Data Início]]+1)))","v":39},{"v":260,"d":"260.00"},{"v":255,"d":"255.00"},{"$f":"IF(tblTarefas[[#This Row],[Status]]=\"Concluída\",1,IF(OR(tblTarefas[[#This Row],[Status]]=\"Não iniciada\",tblTarefas[[#This Row],[Status]]=\"Cancelada\"),0,IF(tblTarefas[[#This Row],[Horas Previstas]]=0,0,MIN(1,tblTarefas[[#This Row],[Horas Trabalhadas]]/tblTarefas[[#This Row],[Horas Previstas]]))))","v":{"v":1,"d":"100.0%"}}]
[null,null,"TRF-015","PRJ-03","MRC-07","Fundação","Sapatas e blocos","Diego Ferreira","Engenharia","Crítica","Concluída","2025-11-10","2026-01-05","2026-02-27","2026-03-06",{"$f":"IF(COUNT(tblTarefas[[#This Row],[Data Início]],tblTarefas[[#This Row],[Data Prevista]])<2,\"\",tblTarefas[[#This Row],[Data Prevista]]-tblTarefas[[#This Row],[Data Início]]+1)","v":54},{"$f":"IF(COUNT(tblTarefas[[#This Row],[Data Início]])=0,\"\",IF(COUNT(tblTarefas[[#This Row],[Data Conclusão]])=1,tblTarefas[[#This Row],[Data Conclusão]]-tblTarefas[[#This Row],[Data Início]]+1,MAX(0,TODAY()-tblTarefas[[#This Row],[Data Início]]+1)))","v":61},{"v":380,"d":"380.00"},{"v":410,"d":"410.00"},{"$f":"IF(tblTarefas[[#This Row],[Status]]=\"Concluída\",1,IF(OR(tblTarefas[[#This Row],[Status]]=\"Não iniciada\",tblTarefas[[#This Row],[Status]]=\"Cancelada\"),0,IF(tblTarefas[[#This Row],[Horas Previstas]]=0,0,MIN(1,tblTarefas[[#This Row],[Horas Trabalhadas]]/tblTarefas[[#This Row],[Horas Previstas]]))))","v":{"v":1,"d":"100.0%"}},"TRF-014"]
[null,null,"TRF-016","PRJ-03","MRC-08","Estrutura metálica","Montagem de pilares e vigas","Diego Ferreira","Engenharia","Crítica","Em andamento","2026-01-15","2026-03-09","2026-05-29",null,{"$f":"IF(COUNT(tblTarefas[[#This Row],[Data Início]],tblTarefas[[#This Row],[Data Prevista]])<2,\"\",tblTarefas[[#This Row],[Data Prevista]]-tblTarefas[[#This Row],[Data Início]]+1)","v":82},{"$f":"IF(COUNT(tblTarefas[[#This Row],[Data Início]])=0,\"\",IF(COUNT(tblTarefas[[#This Row],[Data Conclusão]])=1,tblTarefas[[#This Row],[Data Conclusão]]-tblTarefas[[#This Row],[Data Início]]+1,MAX(0,TODAY()-tblTarefas[[#This Row],[Data Início]]+1)))","v":158},{"v":520,"d":"520.00"},{"v":380,"d":"380.00"},{"$f":"IF(tblTarefas[[#This Row],[Status]]=\"Concluída\",1,IF(OR(tblTarefas[[#This Row],[Status]]=\"Não iniciada\",tblTarefas[[#This Row],[Status]]=\"Cancelada\"),0,IF(tblTarefas[[#This Row],[Horas Previstas]]=0,0,MIN(1,tblTarefas[[#This Row],[Horas Trabalhadas]]/tblTarefas[[#This Row],[Horas Previstas]]))))","v":{"v":0.7307692307692307,"d":"73.1%"}},"TRF-015"]
[null,null,"TRF-017","PRJ-03","MRC-08","Cobertura","Telhas e calhas","Diego Ferreira","Engenharia","Alta","Não iniciada","2026-01-15","2026-06-01","2026-06-19",null,{"$f":"IF(COUNT(tblTarefas[[#This Row],[Data Início]],tblTarefas[[#This Row],[Data Prevista]])<2,\"\",tblTarefas[[#This Row],[Data Prevista]]-tblTarefas[[#This Row],[Data Início]]+1)","v":19},{"$f":"IF(COUNT(tblTarefas[[#This Row],[Data Início]])=0,\"\",IF(COUNT(tblTarefas[[#This Row],[Data Conclusão]])=1,tblTarefas[[#This Row],[Data Conclusão]]-tblTarefas[[#This Row],[Data Início]]+1,MAX(0,TODAY()-tblTarefas[[#This Row],[Data Início]]+1)))","v":74},{"v":180,"d":"180.00"},{"v":0,"d":"0.00"},{"$f":"IF(tblTarefas[[#This Row],[Status]]=\"Concluída\",1,IF(OR(tblTarefas[[#This Row],[Status]]=\"Não iniciada\",tblTarefas[[#This Row],[Status]]=\"Cancelada\"),0,IF(tblTarefas[[#This Row],[Horas Previstas]]=0,0,MIN(1,tblTarefas[[#This Row],[Horas Trabalhadas]]/tblTarefas[[#This Row],[Horas Previstas]]))))","v":{"v":0,"d":"0.0%"}},"TRF-016"]
[null,null,"TRF-018","PRJ-03","MRC-09","Acabamentos e vistoria","Pintura, piso e checklist final","Diego Ferreira","Engenharia","Média","Não iniciada","2026-01-15","2026-06-22","2026-06-30",null,{"$f":"IF(COUNT(tblTarefas[[#This Row],[Data Início]],tblTarefas[[#This Row],[Data Prevista]])<2,\"\",tblTarefas[[#This Row],[Data Prevista]]-tblTarefas[[#This Row],[Data Início]]+1)","v":9},{"$f":"IF(COUNT(tblTarefas[[#This Row],[Data Início]])=0,\"\",IF(COUNT(tblTarefas[[#This Row],[Data Conclusão]])=1,tblTarefas[[#This Row],[Data Conclusão]]-tblTarefas[[#This Row],[Data Início]]+1,MAX(0,TODAY()-tblTarefas[[#This Row],[Data Início]]+1)))","v":53},{"v":120,"d":"120.00"},{"v":0,"d":"0.00"},{"$f":"IF(tblTarefas[[#This Row],[Status]]=\"Concluída\",1,IF(OR(tblTarefas[[#This Row],[Status]]=\"Não iniciada\",tblTarefas[[#This Row],[Status]]=\"Cancelada\"),0,IF(tblTarefas[[#This Row],[Horas Previstas]]=0,0,MIN(1,tblTarefas[[#This Row],[Horas Trabalhadas]]/tblTarefas[[#This Row],[Horas Previstas]]))))","v":{"v":0,"d":"0.0%"}},"TRF-017"]
[null,null,"TRF-019","PRJ-04","MRC-10","Diagnóstico orçamentário","Análise das rubricas","Eduarda Pires","Financeiro","Média","Concluída","2026-01-15","2026-01-15","2026-02-13","2026-02-11",{"$f":"IF(COUNT(tblTarefas[[#This Row],[Data Início]],tblTarefas[[#This Row],[Data Prevista]])<2,\"\",tblTarefas[[#This Row],[Data Prevista]]-tblTarefas[[#This Row],[Data Início]]+1)","v":30},{"$f":"IF(COUNT(tblTarefas[[#This Row],[Data Início]])=0,\"\",IF(COUNT(tblTarefas[[#This Row],[Data Conclusão]])=1,tblTarefas[[#This Row],[Data Conclusão]]-tblTarefas[[#This Row],[Data Início]]+1,MAX(0,TODAY()-tblTarefas[[#This Row],[Data Início]]+1)))","v":28},{"v":90,"d":"90.00"},{"v":84,"d":"84.00"},{"$f":"IF(tblTarefas[[#This Row],[Status]]=\"Concluída\",1,IF(OR(tblTarefas[[#This Row],[Status]]=\"Não iniciada\",tblTarefas[[#This Row],[Status]]=\"Cancelada\"),0,IF(tblTarefas[[#This Row],[Horas Previstas]]=0,0,MIN(1,tblTarefas[[#This Row],[Horas Trabalhadas]]/tblTarefas[[#This Row],[Horas Previstas]]))))","v":{"v":1,"d":"100.0%"}}]
[null,null,"TRF-020","PRJ-04","MRC-10","Redesenho do orçamento","Nova estrutura de centros de custo","Eduarda Pires","Financeiro","Alta","Concluída","2026-01-15","2026-02-16","2026-03-31","2026-03-27",{"$f":"IF(COUNT(tblTarefas[[#This Row],[Data Início]],tblTarefas[[#This Row],[Data Prevista]])<2,\"\",tblTarefas[[#This Row],[Data Prevista]]-tblTarefas[[#This Row],[Data Início]]+1)","v":44},{"$f":"IF(COUNT(tblTarefas[[#This Row],[Data Início]])=0,\"\",IF(COUNT(tblTarefas[[#This Row],[Data Conclusão]])=1,tblTarefas[[#This Row],[Data Conclusão]]-tblTarefas[[#This Row],[Data Início]]+1,MAX(0,TODAY()-tblTarefas[[#This Row],[Data Início]]+1)))","v":40},{"v":120,"d":"120.00"},{"v":110,"d":"110.00"},{"$f":"IF(tblTarefas[[#This Row],[Status]]=\"Concluída\",1,IF(OR(tblTarefas[[#This Row],[Status]]=\"Não iniciada\",tblTarefas[[#This Row],[Status]]=\"Cancelada\"),0,IF(tblTarefas[[#This Row],[Horas Previstas]]=0,0,MIN(1,tblTarefas[[#This Row],[Horas Trabalhadas]]/tblTarefas[[#This Row],[Horas Previstas]]))))","v":{"v":1,"d":"100.0%"}},"TRF-019"]
[null,null,"TRF-021","PRJ-04","MRC-10","Aprovação da diretoria","Apresentação e ajustes","Ana Beatriz Costa","PMO","Alta","Concluída","2026-01-15","2026-04-01","2026-04-28","2026-04-28",{"$f":"IF(COUNT(tblTarefas[[#This Row],[Data Início]],tblTarefas[[#This Row],[Data Prevista]])<2,\"\",tblTarefas[[#This Row],[Data Prevista]]-tblTarefas[[#This Row],[Data Início]]+1)","v":28},{"$f":"IF(COUNT(tblTarefas[[#This Row],[Data Início]])=0,\"\",IF(COUNT(tblTarefas[[#This Row],[Data Conclusão]])=1,tblTarefas[[#This Row],[Data Conclusão]]-tblTarefas[[#This Row],[Data Início]]+1,MAX(0,TODAY()-tblTarefas[[#This Row],[Data Início]]+1)))","v":28},{"v":40,"d":"40.00"},{"v":36,"d":"36.00"},{"$f":"IF(tblTarefas[[#This Row],[Status]]=\"Concluída\",1,IF(OR(tblTarefas[[#This Row],[Status]]=\"Não iniciada\",tblTarefas[[#This Row],[Status]]=\"Cancelada\"),0,IF(tblTarefas[[#This Row],[Horas Previstas]]=0,0,MIN(1,tblTarefas[[#This Row],[Horas Trabalhadas]]/tblTarefas[[#This Row],[Horas Previstas]]))))","v":{"v":1,"d":"100.0%"}},"TRF-020"]
[null,null,"TRF-022","PRJ-05","MRC-11","Levantar necessidades de treinamento","Pesquisa com lideranças","Gabriela Rocha","RH","Baixa","Pausada","2026-03-01","2026-03-02","2026-03-27",null,{"$f":"IF(COUNT(tblTarefas[[#This Row],[Data Início]],tblTarefas[[#This Row],[Data Prevista]])<2,\"\",tblTarefas[[#This Row],[Data Prevista]]-tblTarefas[[#This Row],[Data Início]]+1)","v":26},{"$f":"IF(COUNT(tblTarefas[[#This Row],[Data Início]])=0,\"\",IF(COUNT(tblTarefas[[#This Row],[Data Conclusão]])=1,tblTarefas[[#This Row],[Data Conclusão]]-tblTarefas[[#This Row],[Data Início]]+1,MAX(0,TODAY()-tblTarefas[[#This Row],[Data Início]]+1)))","v":165},{"v":60,"d":"60.00"},{"v":30,"d":"30.00"},{"$f":"IF(tblTarefas[[#This Row],[Status]]=\"Concluída\",1,IF(OR(tblTarefas[[#This Row],[Status]]=\"Não iniciada\",tblTarefas[[#This Row],[Status]]=\"Cancelada\"),0,IF(tblTarefas[[#This Row],[Horas Previstas]]=0,0,MIN(1,tblTarefas[[#This Row],[Horas Trabalhadas]]/tblTarefas[[#This Row],[Horas Previstas]]))))","v":{"v":0.5,"d":"50.0%"}}]
[null,null,"TRF-023","PRJ-05","MRC-11","Definir trilhas de aprendizagem","Matriz de competências","Gabriela Rocha","RH","Média","Não iniciada","2026-03-01","2026-03-30","2026-04-10",null,{"$f":"IF(COUNT(tblTarefas[[#This Row],[Data Início]],tblTarefas[[#This Row],[Data Prevista]])<2,\"\",tblTarefas[[#This Row],[Data Prevista]]-tblTarefas[[#This Row],[Data Início]]+1)","v":12},{"$f":"IF(COUNT(tblTarefas[[#This Row],[Data Início]])=0,\"\",IF(COUNT(tblTarefas[[#This Row],[Data Conclusão]])=1,tblTarefas[[#This Row],[Data Conclusão]]-tblTarefas[[#This Row],[Data Início]]+1,MAX(0,TODAY()-tblTarefas[[#This Row],[Data Início]]+1)))","v":137},{"v":50,"d":"50.00"},{"v":0,"d":"0.00"},{"$f":"IF(tblTarefas[[#This Row],[Status]]=\"Concluída\",1,IF(OR(tblTarefas[[#This Row],[Status]]=\"Não iniciada\",tblTarefas[[#This Row],[Status]]=\"Cancelada\"),0,IF(tblTarefas[[#This Row],[Horas Previstas]]=0,0,MIN(1,tblTarefas[[#This Row],[Horas Trabalhadas]]/tblTarefas[[#This Row],[Horas Previstas]]))))","v":{"v":0,"d":"0.0%"}},"TRF-022"]
[null,null,"TRF-024","PRJ-06","MRC-12","Levantar escopo do portal","Workshops com stakeholders","Felipe Andrade","TI","Alta","Não iniciada","2026-06-01","2026-06-01","2026-06-30",null,{"$f":"IF(COUNT(tblTarefas[[#This Row],[Data Início]],tblTarefas[[#This Row],[Data Prevista]])<2,\"\",tblTarefas[[#This Row],[Data Prevista]]-tblTarefas[[#This Row],[Data Início]]+1)","v":30},{"$f":"IF(COUNT(tblTarefas[[#This Row],[Data Início]])=0,\"\",IF(COUNT(tblTarefas[[#This Row],[Data Conclusão]])=1,tblTarefas[[#This Row],[Data Conclusão]]-tblTarefas[[#This Row],[Data Início]]+1,MAX(0,TODAY()-tblTarefas[[#This Row],[Data Início]]+1)))","v":74},{"v":100,"d":"100.00"},{"v":0,"d":"0.00"},{"$f":"IF(tblTarefas[[#This Row],[Status]]=\"Concluída\",1,IF(OR(tblTarefas[[#This Row],[Status]]=\"Não iniciada\",tblTarefas[[#This Row],[Status]]=\"Cancelada\"),0,IF(tblTarefas[[#This Row],[Horas Previstas]]=0,0,MIN(1,tblTarefas[[#This Row],[Horas Trabalhadas]]/tblTarefas[[#This Row],[Horas Previstas]]))))","v":{"v":0,"d":"0.0%"}}]
[null,null,"TRF-025","PRJ-06","MRC-12","Prototipar interface","Wireframes e protótipo navegável","Carla Nogueira","Marketing","Média","Não iniciada","2026-06-01","2026-07-01","2026-07-31",null,{"$f":"IF(COUNT(tblTarefas[[#This Row],[Data Início]],tblTarefas[[#This Row],[Data Prevista]])<2,\"\",tblTarefas[[#This Row],[Data Prevista]]-tblTarefas[[#This Row],[Data Início]]+1)","v":31},{"$f":"IF(COUNT(tblTarefas[[#This Row],[Data Início]])=0,\"\",IF(COUNT(tblTarefas[[#This Row],[Data Conclusão]])=1,tblTarefas[[#This Row],[Data Conclusão]]-tblTarefas[[#This Row],[Data Início]]+1,MAX(0,TODAY()-tblTarefas[[#This Row],[Data Início]]+1)))","v":44},{"v":90,"d":"90.00"},{"v":0,"d":"0.00"},{"$f":"IF(tblTarefas[[#This Row],[Status]]=\"Concluída\",1,IF(OR(tblTarefas[[#This Row],[Status]]=\"Não iniciada\",tblTarefas[[#This Row],[Status]]=\"Cancelada\"),0,IF(tblTarefas[[#This Row],[Horas Previstas]]=0,0,MIN(1,tblTarefas[[#This Row],[Horas Trabalhadas]]/tblTarefas[[#This Row],[Horas Previstas]]))))","v":{"v":0,"d":"0.0%"}},"TRF-024"]
[null,null,"TRF-026","PRJ-06","MRC-12","Definir arquitetura técnica","Stack, integrações e segurança","Felipe Andrade","TI","Alta","Não iniciada","2026-06-01","2026-07-01","2026-08-14",null,{"$f":"IF(COUNT(tblTarefas[[#This Row],[Data Início]],tblTarefas[[#This Row],[Data Prevista]])<2,\"\",tblTarefas[[#This Row],[Data Prevista]]-tblTarefas[[#This Row],[Data Início]]+1)","v":45},{"$f":"IF(COUNT(tblTarefas[[#This Row],[Data Início]])=0,\"\",IF(COUNT(tblTarefas[[#This Row],[Data Conclusão]])=1,tblTarefas[[#This Row],[Data Conclusão]]-tblTarefas[[#This Row],[Data Início]]+1,MAX(0,TODAY()-tblTarefas[[#This Row],[Data Início]]+1)))","v":44},{"v":110,"d":"110.00"},{"v":0,"d":"0.00"},{"$f":"IF(tblTarefas[[#This Row],[Status]]=\"Concluída\",1,IF(OR(tblTarefas[[#This Row],[Status]]=\"Não iniciada\",tblTarefas[[#This Row],[Status]]=\"Cancelada\"),0,IF(tblTarefas[[#This Row],[Horas Previstas]]=0,0,MIN(1,tblTarefas[[#This Row],[Horas Trabalhadas]]/tblTarefas[[#This Row],[Horas Previstas]]))))","v":{"v":0,"d":"0.0%"}},"TRF-024"]

{"sheet":"09 - Horas","index":8,"n_rows":67,"n_cols":9,"rows_kept":67,"hidden":true}
[]
[]
[]
[]
[]
[null,null,"REGISTRO DIÁRIO DE HORAS"]
[null,null,"ID","Projeto","Tarefa","Funcionário","Data","Horas Trabalhadas","Descrição"]
[null,null,"HOR-001","PRJ-01","TRF-001","Bruno Martins","2026-01-09",{"v":29.5,"d":"29.50"},"Apontamento de horas — TRF-001"]
[null,null,"HOR-002","PRJ-01","TRF-001","Bruno Martins","2026-01-12",{"v":29.5,"d":"29.50"},"Apontamento de horas — TRF-001"]
[null,null,"HOR-003","PRJ-01","TRF-001","Bruno Martins","2026-01-15",{"v":29.5,"d":"29.50"},"Apontamento de horas — TRF-001"]
[null,null,"HOR-004","PRJ-01","TRF-001","Bruno Martins","2026-01-18",{"v":29.5,"d":"29.50"},"Apontamento de horas — TRF-001"]
[null,null,"HOR-005","PRJ-01","TRF-002","Bruno Martins","2026-01-21",{"v":28,"d":"28.00"},"Apontamento de horas — TRF-002"]
[null,null,"HOR-006","PRJ-01","TRF-002","Bruno Martins","2026-01-24",{"v":28,"d":"28.00"},"Apontamento de horas — TRF-002"]
[null,null,"HOR-007","PRJ-01","TRF-002","Bruno Martins","2026-01-27",{"v":28,"d":"28.00"},"Apontamento de horas — TRF-002"]
[null,null,"HOR-008","PRJ-01","TRF-002","Bruno Martins","2026-01-30",{"v":28,"d":"28.00"},"Apontamento de horas — TRF-002"]
[null,null,"HOR-009","PRJ-01","TRF-003","Eduarda Pires","2026-02-02",{"v":35,"d":"35.00"},"Apontamento de horas — TRF-003"]
[null,null,"HOR-010","PRJ-01","TRF-003","Eduarda Pires","2026-02-05",{"v":35,"d":"35.00"},"Apontamento de horas — TRF-003"]
[null,null,"HOR-011","PRJ-01","TRF-003","Eduarda Pires","2026-02-08",{"v":35,"d":"35.00"},"Apontamento de horas — TRF-003"]
[null,null,"HOR-012","PRJ-01","TRF-003","Eduarda Pires","2026-02-11",{"v":35,"d":"35.00"},"Apontamento de horas — TRF-003"]
[null,null,"HOR-013","PRJ-01","TRF-004","Bruno Martins","2026-02-14",{"v":22.5,"d":"22.50"},"Apontamento de horas — TRF-004"]
[null,null,"HOR-014","PRJ-01","TRF-004","Bruno Martins","2026-02-17",{"v":22.5,"d":"22.50"},"Apontamento de horas — TRF-004"]
[null,null,"HOR-015","PRJ-01","TRF-004","Bruno Martins","2026-02-20",{"v":22.5,"d":"22.50"},"Apontamento de horas — TRF-004"]
[null,null,"HOR-016","PRJ-01","TRF-004","Bruno Martins","2026-02-23",{"v":22.5,"d":"22.50"},"Apontamento de horas — TRF-004"]
[null,null,"HOR-017","PRJ-02","TRF-008","Carla Nogueira","2026-02-26",{"v":9.5,"d":"9.50"},"Apontamento de horas — TRF-008"]
[null,null,"HOR-018","PRJ-02","TRF-008","Carla Nogueira","2026-03-01",{"v":9.5,"d":"9.50"},"Apontamento de horas — TRF-008"]
[null,null,"HOR-019","PRJ-02","TRF-008","Carla Nogueira","2026-03-04",{"v":9.5,"d":"9.50"},"Apontamento de horas — TRF-008"]
[null,null,"HOR-020","PRJ-02","TRF-008","Carla Nogueira","2026-03-07",{"v":9.5,"d":"9.50"},"Apontamento de horas — TRF-008"]
[null,null,"HOR-021","PRJ-02","TRF-009","Carla Nogueira","2026-03-10",{"v":21.5,"d":"21.50"},"Apontamento de horas — TRF-009"]
[null,null,"HOR-022","PRJ-02","TRF-009","Carla Nogueira","2026-03-13",{"v":21.5,"d":"21.50"},"Apontamento de horas — TRF-009"]
[null,null,"HOR-023","PRJ-02","TRF-009","Carla Nogueira","2026-03-16",{"v":21.5,"d":"21.50"},"Apontamento de horas — TRF-009"]
[null,null,"HOR-024","PRJ-02","TRF-009","Carla Nogueira","2026-03-19",{"v":21.5,"d":"21.50"},"Apontamento de horas — TRF-009"]
[null,null,"HOR-025","PRJ-02","TRF-010","Carla Nogueira","2026-03-22",{"v":30,"d":"30.00"},"Apontamento de horas — TRF-010"]
[null,null,"HOR-026","PRJ-02","TRF-010","Carla Nogueira","2026-03-25",{"v":30,"d":"30.00"},"Apontamento de horas — TRF-010"]
[null,null,"HOR-027","PRJ-02","TRF-010","Carla Nogueira","2026-03-28",{"v":30,"d":"30.00"},"Apontamento de horas — TRF-010"]
[null,null,"HOR-028","PRJ-02","TRF-010","Carla Nogueira","2026-03-31",{"v":30,"d":"30.00"},"Apontamento de horas — TRF-010"]
[null,null,"HOR-029","PRJ-02","TRF-011","Carla Nogueira","2026-04-03",{"v":15,"d":"15.00"},"Apontamento de horas — TRF-011"]
[null,null,"HOR-030","PRJ-02","TRF-011","Carla Nogueira","2026-04-06",{"v":15,"d":"15.00"},"Apontamento de horas — TRF-011"]
[null,null,"HOR-031","PRJ-02","TRF-011","Carla Nogueira","2026-04-09",{"v":15,"d":"15.00"},"Apontamento de horas — TRF-011"]
[null,null,"HOR-032","PRJ-02","TRF-011","Carla Nogueira","2026-04-12",{"v":15,"d":"15.00"},"Apontamento de horas — TRF-011"]
[null,null,"HOR-033","PRJ-03","TRF-014","Diego Ferreira","2026-04-15",63.75,"Apontamento de horas — TRF-014"]
[null,null,"HOR-034","PRJ-03","TRF-014","Diego Ferreira","2026-04-18",63.75,"Apontamento de horas — TRF-014"]
[null,null,"HOR-035","PRJ-03","TRF-014","Diego Ferreira","2026-04-21",63.75,"Apontamento de horas — TRF-014"]
[null,null,"HOR-036","PRJ-03","TRF-014","Diego Ferreira","2026-04-24",63.75,"Apontamento de horas — TRF-014"]
[null,null,"HOR-037","PRJ-03","TRF-015","Diego Ferreira","2026-04-27",{"v":102.5,"d":"102.50"},"Apontamento de horas — TRF-015"]
[null,null,"HOR-038","PRJ-03","TRF-015","Diego Ferreira","2026-04-30",{"v":102.5,"d":"102.50"},"Apontamento de horas — TRF-015"]
[null,null,"HOR-039","PRJ-03","TRF-015","Diego Ferreira","2026-05-03",{"v":102.5,"d":"102.50"},"Apontamento de horas — TRF-015"]
[null,null,"HOR-040","PRJ-03","TRF-015","Diego Ferreira","2026-05-06",{"v":102.5,"d":"102.50"},"Apontamento de horas — TRF-015"]
[null,null,"HOR-041","PRJ-03","TRF-016","Diego Ferreira","2026-05-09",{"v":95,"d":"95.00"},"Apontamento de horas — TRF-016"]
[null,null,"HOR-042","PRJ-03","TRF-016","Diego Ferreira","2026-05-12",{"v":95,"d":"95.00"},"Apontamento de horas — TRF-016"]
[null,null,"HOR-043","PRJ-03","TRF-016","Diego Ferreira","2026-05-15",{"v":95,"d":"95.00"},"Apontamento de horas — TRF-016"]
[null,null,"HOR-044","PRJ-03","TRF-016","Diego Ferreira","2026-05-18",{"v":95,"d":"95.00"},"Apontamento de horas — TRF-016"]
[null,null,"HOR-045","PRJ-04","TRF-019","Eduarda Pires","2026-05-21",{"v":21,"d":"21.00"},"Apontamento de horas — TRF-019"]
[null,null,"HOR-046","PRJ-04","TRF-019","Eduarda Pires","2026-05-24",{"v":21,"d":"21.00"},"Apontamento de horas — TRF-019"]
[null,null,"HOR-047","PRJ-04","TRF-019","Eduarda Pires","2026-05-27",{"v":21,"d":"21.00"},"Apontamento de horas — TRF-019"]
[null,null,"HOR-048","PRJ-04","TRF-019","Eduarda Pires","2026-05-30",{"v":21,"d":"21.00"},"Apontamento de horas — TRF-019"]
[null,null,"HOR-049","PRJ-04","TRF-020","Eduarda Pires","2026-06-02",{"v":27.5,"d":"27.50"},"Apontamento de horas — TRF-020"]
[null,null,"HOR-050","PRJ-04","TRF-020","Eduarda Pires","2026-01-06",{"v":27.5,"d":"27.50"},"Apontamento de horas — TRF-020"]
[null,null,"HOR-051","PRJ-04","TRF-020","Eduarda Pires","2026-01-09",{"v":27.5,"d":"27.50"},"Apontamento de horas — TRF-020"]
[null,null,"HOR-052","PRJ-04","TRF-020","Eduarda Pires","2026-01-12",{"v":27.5,"d":"27.50"},"Apontamento de horas — TRF-020"]
[null,null,"HOR-053","PRJ-04","TRF-021","Ana Beatriz Costa","2026-01-15",{"v":9,"d":"9.00"},"Apontamento de horas — TRF-021"]
[null,null,"HOR-054","PRJ-04","TRF-021","Ana Beatriz Costa","2026-01-18",{"v":9,"d":"9.00"},"Apontamento de horas — TRF-021"]
[null,null,"HOR-055","PRJ-04","TRF-021","Ana Beatriz Costa","2026-01-21",{"v":9,"d":"9.00"},"Apontamento de horas — TRF-021"]
[null,null,"HOR-056","PRJ-04","TRF-021","Ana Beatriz Costa","2026-01-24",{"v":9,"d":"9.00"},"Apontamento de horas — TRF-021"]
[null,null,"HOR-057","PRJ-05","TRF-022","Gabriela Rocha","2026-01-27",{"v":7.5,"d":"7.50"},"Apontamento de horas — TRF-022"]
[null,null,"HOR-058","PRJ-05","TRF-022","Gabriela Rocha","2026-01-30",{"v":7.5,"d":"7.50"},"Apontamento de horas — TRF-022"]
[null,null,"HOR-059","PRJ-05","TRF-022","Gabriela Rocha","2026-02-02",{"v":7.5,"d":"7.50"},"Apontamento de horas — TRF-022"]
[null,null,"HOR-060","PRJ-05","TRF-022","Gabriela Rocha","2026-02-05",{"v":7.5,"d":"7.50"},"Apontamento de horas — TRF-022"]

{"sheet":"10 - Financeiro","index":9,"n_rows":27,"n_cols":13,"rows_kept":27,"hidden":true}
[]
[]
[]
[]
[]
[null,null,"CONTROLE FINANCEIRO"]
[null,null,"ID","Projeto","Categoria","Tipo","Descrição","Data","Valor Previsto","Valor Real","Diferença","Responsável","Observações"]
[null,null,"FIN-001","PRJ-01","TI","Investimento","Licenças de software","2026-01-15",{"v":180000,"d":"R$ 180,000"},{"v":182500,"d":"R$ 182,500"},{"$f":"tblFinanceiro[[#This Row],[Valor Real]]-tblFinanceiro[[#This Row],[Valor Previsto]]","v":{"v":2500,"d":"R$ 2,500"}},"Bruno Martins"]
[null,null,"FIN-002","PRJ-01","TI","Despesa","Consultoria de implantação","2026-02-28",{"v":150000,"d":"R$ 150,000"},{"v":161000,"d":"R$ 161,000"},{"$f":"tblFinanceiro[[#This Row],[Valor Real]]-tblFinanceiro[[#This Row],[Valor Previsto]]","v":{"v":11000,"d":"R$ 11,000"}},"Ana Beatriz Costa","Horas extras de consultor"]
[null,null,"FIN-003","PRJ-01","TI","Despesa","Infraestrutura de servidores","2026-03-20",{"v":80000,"d":"R$ 80,000"},{"v":74300,"d":"R$ 74,300"},{"$f":"tblFinanceiro[[#This Row],[Valor Real]]-tblFinanceiro[[#This Row],[Valor Previsto]]","v":{"v":-5700,"d":"(R$ 5,700)"}},"Bruno Martins"]
[null,null,"FIN-004","PRJ-01","TI","Despesa","Treinamento de usuários","2026-08-10",{"v":70000,"d":"R$ 70,000"},0,{"$f":"tblFinanceiro[[#This Row],[Valor Real]]-tblFinanceiro[[#This Row],[Valor Previsto]]","v":{"v":-70000,"d":"(R$ 70,000)"}},"Gabriela Rocha","A realizar"]
[null,null,"FIN-005","PRJ-02","Marketing","Despesa","Produção criativa","2026-02-20",{"v":60000,"d":"R$ 60,000"},{"v":58200,"d":"R$ 58,200"},{"$f":"tblFinanceiro[[#This Row],[Valor Real]]-tblFinanceiro[[#This Row],[Valor Previsto]]","v":{"v":-1800,"d":"(R$ 1,800)"}},"Carla Nogueira"]
[null,null,"FIN-006","PRJ-02","Marketing","Despesa","Produção de vídeo","2026-04-25",{"v":45000,"d":"R$ 45,000"},{"v":49800,"d":"R$ 49,800"},{"$f":"tblFinanceiro[[#This Row],[Valor Real]]-tblFinanceiro[[#This Row],[Valor Previsto]]","v":{"v":4800,"d":"R$ 4,800"}},"Carla Nogueira","Diária extra de gravação"]
[null,null,"FIN-007","PRJ-02","Marketing","Despesa","Compra de mídia","2026-07-05",{"v":45000,"d":"R$ 45,000"},0,{"$f":"tblFinanceiro[[#This Row],[Valor Real]]-tblFinanceiro[[#This Row],[Valor Previsto]]","v":{"v":-45000,"d":"(R$ 45,000)"}},"Henrique Dias","A realizar"]
[null,null,"FIN-008","PRJ-03","Construção","Despesa","Terraplanagem","2025-12-15",{"v":300000,"d":"R$ 300,000"},{"v":296000,"d":"R$ 296,000"},{"$f":"tblFinanceiro[[#This Row],[Valor Real]]-tblFinanceiro[[#This Row],[Valor Previsto]]","v":{"v":-4000,"d":"(R$ 4,000)"}},"Diego Ferreira"]
[null,null,"FIN-009","PRJ-03","Construção","Despesa","Fundação e concreto","2026-02-28",{"v":700000,"d":"R$ 700,000"},{"v":742000,"d":"R$ 742,000"},{"$f":"tblFinanceiro[[#This Row],[Valor Real]]-tblFinanceiro[[#This Row],[Valor Previsto]]","v":{"v":42000,"d":"R$ 42,000"}},"Diego Ferreira","Reajuste de insumos"]
[null,null,"FIN-010","PRJ-03","Construção","Investimento","Estrutura metálica","2026-04-15",{"v":900000,"d":"R$ 900,000"},{"v":880500,"d":"R$ 880,500"},{"$f":"tblFinanceiro[[#This Row],[Valor Real]]-tblFinanceiro[[#This Row],[Valor Previsto]]","v":{"v":-19500,"d":"(R$ 19,500)"}},"Diego Ferreira"]
[null,null,"FIN-011","PRJ-03","Construção","Despesa","Cobertura e acabamentos","2026-06-10",{"v":300000,"d":"R$ 300,000"},0,{"$f":"tblFinanceiro[[#This Row],[Valor Real]]-tblFinanceiro[[#This Row],[Valor Previsto]]","v":{"v":-300000,"d":"(R$ 300,000)"}},"Diego Ferreira","A realizar"]
[null,null,"FIN-012","PRJ-04","Financeiro","Despesa","Consultoria orçamentária","2026-02-20",{"v":60000,"d":"R$ 60,000"},{"v":57500,"d":"R$ 57,500"},{"$f":"tblFinanceiro[[#This Row],[Valor Real]]-tblFinanceiro[[#This Row],[Valor Previsto]]","v":{"v":-2500,"d":"(R$ 2,500)"}},"Eduarda Pires"]
[null,null,"FIN-013","PRJ-04","Financeiro","Despesa","Ferramenta de BI","2026-03-15",{"v":30000,"d":"R$ 30,000"},{"v":28900,"d":"R$ 28,900"},{"$f":"tblFinanceiro[[#This Row],[Valor Real]]-tblFinanceiro[[#This Row],[Valor Previsto]]","v":{"v":-1100,"d":"(R$ 1,100)"}},"Eduarda Pires"]
[null,null,"FIN-014","PRJ-05","RH","Despesa","Material didático","2026-03-15",{"v":25000,"d":"R$ 25,000"},{"v":12000,"d":"R$ 12,000"},{"$f":"tblFinanceiro[[#This Row],[Valor Real]]-tblFinanceiro[[#This Row],[Valor Previsto]]","v":{"v":-13000,"d":"(R$ 13,000)"}},"Gabriela Rocha","Parcial — projeto pausado"]
[null,null,"FIN-015","PRJ-05","RH","Despesa","Instrutores externos","2026-04-20",{"v":35000,"d":"R$ 35,000"},0,{"$f":"tblFinanceiro[[#This Row],[Valor Real]]-tblFinanceiro[[#This Row],[Valor Previsto]]","v":{"v":-35000,"d":"(R$ 35,000)"}},"Gabriela Rocha","Suspenso"]
[null,null,"FIN-016","PRJ-06","Desenvolvimento","Investimento","Squad de desenvolvimento","2026-07-30",{"v":240000,"d":"R$ 240,000"},0,{"$f":"tblFinanceiro[[#This Row],[Valor Real]]-tblFinanceiro[[#This Row],[Valor Previsto]]","v":{"v":-240000,"d":"(R$ 240,000)"}},"Felipe Andrade","A iniciar"]
[null,null,"FIN-017","PRJ-06","Desenvolvimento","Despesa","UX e design do portal","2026-08-15",{"v":80000,"d":"R$ 80,000"},0,{"$f":"tblFinanceiro[[#This Row],[Valor Real]]-tblFinanceiro[[#This Row],[Valor Previsto]]","v":{"v":-80000,"d":"(R$ 80,000)"}},"Carla Nogueira","A iniciar"]
[null,null,"FIN-018","PRJ-04","Financeiro","Receita","Faturamento do projeto","2026-04-30",{"v":120000,"d":"R$ 120,000"},{"v":120000,"d":"R$ 120,000"},{"$f":"tblFinanceiro[[#This Row],[Valor Real]]-tblFinanceiro[[#This Row],[Valor Previsto]]","v":0},"Ana Beatriz Costa","Recebido"]
[null,null,"FIN-019","PRJ-02","Marketing","Receita","Faturamento parcial","2026-05-31",{"v":90000,"d":"R$ 90,000"},{"v":90000,"d":"R$ 90,000"},{"$f":"tblFinanceiro[[#This Row],[Valor Real]]-tblFinanceiro[[#This Row],[Valor Previsto]]","v":0},"Ana Beatriz Costa","1ª parcela"]
[null,null,"FIN-020","PRJ-01","TI","Receita","Faturamento marco 1","2026-02-28",{"v":200000,"d":"R$ 200,000"},{"v":200000,"d":"R$ 200,000"},{"$f":"tblFinanceiro[[#This Row],[Valor Real]]-tblFinanceiro[[#This Row],[Valor Previsto]]","v":0},"Ana Beatriz Costa","Recebido"]

{"sheet":"11 - Gantt","index":10,"n_rows":41,"n_cols":130,"rows_kept":41,"hidden":true}
[]
[]
[]
[]
[null,null,"Data base do cronograma:",null,{"$f":"DATE(2026,1,1)","v":"2026-01-01"},"← altere para deslocar a janela de 120 dias"]
[null,null,"CRONOGRAMA / GANTT",{"$nulls":7},{"$f":"IF(OR(0=0,DAY($E$5+0)=1),TEXT($E$5+0,\"mmm/yy\"),\"\")","v":"Jan/26"},{"$f":"IF(OR(1=0,DAY($E$5+1)=1),TEXT($E$5+1,\"mmm/yy\"),\"\")","v":""},{"$f":"IF(OR(2=0,DAY($E$5+2)=1),TEXT($E$5+2,\"mmm/yy\"),\"\")","v":""},{"$f":"IF(OR(3=0,DAY($E$5+3)=1),TEXT($E$5+3,\"mmm/yy\"),\"\")","v":""},{"$f":"IF(OR(4=0,DAY($E$5+4)=1),TEXT($E$5+4,\"mmm/yy\"),\"\")","v":""},{"$f":"IF(OR(5=0,DAY($E$5+5)=1),TEXT($E$5+5,\"mmm/yy\"),\"\")","v":""},{"$f":"IF(OR(6=0,DAY($E$5+6)=1),TEXT($E$5+6,\"mmm/yy\"),\"\")","v":""},{"$f":"IF(OR(7=0,DAY($E$5+7)=1),TEXT($E$5+7,\"mmm/yy\"),\"\")","v":""},{"$f":"IF(OR(8=0,DAY($E$5+8)=1),TEXT($E$5+8,\"mmm/yy\"),\"\")","v":""},{"$f":"IF(OR(9=0,DAY($E$5+9)=1),TEXT($E$5+9,\"mmm/yy\"),\"\")","v":""},{"$f":"IF(OR(10=0,DAY($E$5+10)=1),TEXT($E$5+10,\"mmm/yy\"),\"\")","v":""},{"$f":"IF(OR(11=0,DAY($E$5+11)=1),TEXT($E$5+11,\"mmm/yy\"),\"\")","v":""},{"$f":"IF(OR(12=0,DAY($E$5+12)=1),TEXT($E$5+12,\"mmm/yy\"),\"\")","v":""},{"$f":"IF(OR(13=0,DAY($E$5+13)=1),TEXT($E$5+13,\"mmm/yy\"),\"\")","v":""},{"$f":"IF(OR(14=0,DAY($E$5+14)=1),TEXT($E$5+14,\"mmm/yy\"),\"\")","v":""},{"$f":"IF(OR(15=0,DAY($E$5+15)=1),TEXT($E$5+15,\"mmm/yy\"),\"\")","v":""},{"$f":"IF(OR(16=0,DAY($E$5+16)=1),TEXT($E$5+16,\"mmm/yy\"),\"\")","v":""},{"$f":"IF(OR(17=0,DAY($E$5+17)=1),TEXT($E$5+17,\"mmm/yy\"),\"\")","v":""},{"$f":"IF(OR(18=0,DAY($E$5+18)=1),TEXT($E$5+18,\"mmm/yy\"),\"\")","v":""},{"$f":"IF(OR(19=0,DAY($E$5+19)=1),TEXT($E$5+19,\"mmm/yy\"),\"\")","v":""},{"$f":"IF(OR(20=0,DAY($E$5+20)=1),TEXT($E$5+20,\"mmm/yy\"),\"\")","v":""},{"$f":"IF(OR(21=0,DAY($E$5+21)=1),TEXT($E$5+21,\"mmm/yy\"),\"\")","v":""},{"$f":"IF(OR(22=0,DAY($E$5+22)=1),TEXT($E$5+22,\"mmm/yy\"),\"\")","v":""},{"$f":"IF(OR(23=0,DAY($E$5+23)=1),TEXT($E$5+23,\"mmm/yy\"),\"\")","v":""},{"$f":"IF(OR(24=0,DAY($E$5+24)=1),TEXT($E$5+24,\"mmm/yy\"),\"\")","v":""},{"$f":"IF(OR(25=0,DAY($E$5+25)=1),TEXT($E$5+25,\"mmm/yy\"),\"\")","v":""},{"$f":"IF(OR(26=0,DAY($E$5+26)=1),TEXT($E$5+26,\"mmm/yy\"),\"\")","v":""},{"$f":"IF(OR(27=0,DAY($E$5+27)=1),TEXT($E$5+27,\"mmm/yy\"),\"\")","v":""},{"$f":"IF(OR(28=0,DAY($E$5+28)=1),TEXT($E$5+28,\"mmm/yy\"),\"\")","v":""},{"$f":"IF(OR(29=0,DAY($E$5+29)=1),TEXT($E$5+29,\"mmm/yy\"),\"\")","v":""},{"$f":"IF(OR(30=0,DAY($E$5+30)=1),TEXT($E$5+30,\"mmm/yy\"),\"\")","v":""},{"$f":"IF(OR(31=0,DAY($E$5+31)=1),TEXT($E$5+31,\"mmm/yy\"),\"\")","v":"Feb/26"},{"$f":"IF(OR(32=0,DAY($E$5+32)=1),TEXT($E$5+32,\"mmm/yy\"),\"\")","v":""},{"$f":"IF(OR(33=0,DAY($E$5+33)=1),TEXT($E$5+33,\"mmm/yy\"),\"\")","v":""},{"$f":"IF(OR(34=0,DAY($E$5+34)=1),TEXT($E$5+34,\"mmm/yy\"),\"\")","v":""},{"$f":"IF(OR(35=0,DAY($E$5+35)=1),TEXT($E$5+35,\"mmm/yy\"),\"\")","v":""},{"$f":"IF(OR(36=0,DAY($E$5+36)=1),TEXT($E$5+36,\"mmm/yy\"),\"\")","v":""},{"$f":"IF(OR(37=0,DAY($E$5+37)=1),TEXT($E$5+37,\"mmm/yy\"),\"\")","v":""},{"$f":"IF(OR(38=0,DAY($E$5+38)=1),TEXT($E$5+38,\"mmm/yy\"),\"\")","v":""},{"$f":"IF(OR(39=0,DAY($E$5+39)=1),TEXT($E$5+39,\"mmm/yy\"),\"\")","v":""},{"$f":"IF(OR(40=0,DAY($E$5+40)=1),TEXT($E$5+40,\"mmm/yy\"),\"\")","v":""},{"$f":"IF(OR(41=0,DAY($E$5+41)=1),TEXT($E$5+41,\"mmm/yy\"),\"\")","v":""},{"$f":"IF(OR(42=0,DAY($E$5+42)=1),TEXT($E$5+42,\"mmm/yy\"),\"\")","v":""},{"$f":"IF(OR(43=0,DAY($E$5+43)=1),TEXT($E$5+43,\"mmm/yy\"),\"\")","v":""},{"$f":"IF(OR(44=0,DAY($E$5+44)=1),TEXT($E$5+44,\"mmm/yy\"),\"\")","v":""},{"$f":"IF(OR(45=0,DAY($E$5+45)=1),TEXT($E$5+45,\"mmm/yy\"),\"\")","v":""},{"$f":"IF(OR(46=0,DAY($E$5+46)=1),TEXT($E$5+46,\"mmm/yy\"),\"\")","v":""},{"$f":"IF(OR(47=0,DAY($E$5+47)=1),TEXT($E$5+47,\"mmm/yy\"),\"\")","v":""},{"$f":"IF(OR(48=0,DAY($E$5+48)=1),TEXT($E$5+48,\"mmm/yy\"),\"\")","v":""},{"$f":"IF(OR(49=0,DAY($E$5+49)=1),TEXT($E$5+49,\"mmm/yy\"),\"\")","v":""},{"$f":"IF(OR(50=0,DAY($E$5+50)=1),TEXT($E$5+50,\"mmm/yy\"),\"\")","v":""},{"$f":"IF(OR(51=0,DAY($E$5+51)=1),TEXT($E$5+51,\"mmm/yy\"),\"\")","v":""},{"$f":"IF(OR(52=0,DAY($E$5+52)=1),TEXT($E$5+52,\"mmm/yy\"),\"\")","v":""},{"$f":"IF(OR(53=0,DAY($E$5+53)=1),TEXT($E$5+53,\"mmm/yy\"),\"\")","v":""},{"$f":"IF(OR(54=0,DAY($E$5+54)=1),TEXT($E$5+54,\"mmm/yy\"),\"\")","v":""},{"$f":"IF(OR(55=0,DAY($E$5+55)=1),TEXT($E$5+55,\"mmm/yy\"),\"\")","v":""},{"$f":"IF(OR(56=0,DAY($E$5+56)=1),TEXT($E$5+56,\"mmm/yy\"),\"\")","v":""},{"$f":"IF(OR(57=0,DAY($E$5+57)=1),TEXT($E$5+57,\"mmm/yy\"),\"\")","v":""},{"$f":"IF(OR(58=0,DAY($E$5+58)=1),TEXT($E$5+58,\"mmm/yy\"),\"\")","v":""},{"$f":"IF(OR(59=0,DAY($E$5+59)=1),TEXT($E$5+59,\"mmm/yy\"),\"\")","v":"Mar/26"},{"$f":"IF(OR(60=0,DAY($E$5+60)=1),TEXT($E$5+60,\"mmm/yy\"),\"\")","v":""},{"$f":"IF(OR(61=0,DAY($E$5+61)=1),TEXT($E$5+61,\"mmm/yy\"),\"\")","v":""},{"$f":"IF(OR(62=0,DAY($E$5+62)=1),TEXT($E$5+62,\"mmm/yy\"),\"\")","v":""},{"$f":"IF(OR(63=0,DAY($E$5+63)=1),TEXT($E$5+63,\"mmm/yy\"),\"\")","v":""},{"$f":"IF(OR(64=0,DAY($E$5+64)=1),TEXT($E$5+64,\"mmm/yy\"),\"\")","v":""},{"$f":"IF(OR(65=0,DAY($E$5+65)=1),TEXT($E$5+65,\"mmm/yy\"),\"\")","v":""},{"$f":"IF(OR(66=0,DAY($E$5+66)=1),TEXT($E$5+66,\"mmm/yy\"),\"\")","v":""},{"$f":"IF(OR(67=0,DAY($E$5+67)=1),TEXT($E$5+67,\"mmm/yy\"),\"\")","v":""},{"$f":"IF(OR(68=0,DAY($E$5+68)=1),TEXT($E$5+68,\"mmm/yy\"),\"\")","v":""},{"$f":"IF(OR(69=0,DAY($E$5+69)=1),TEXT($E$5+69,\"mmm/yy\"),\"\")","v":""},{"$f":"IF(OR(70=0,DAY($E$5+70)=1),TEXT($E$5+70,\"mmm/yy\"),\"\")","v":""},{"$f":"IF(OR(71=0,DAY($E$5+71)=1),TEXT($E$5+71,\"mmm/yy\"),\"\")","v":""},{"$f":"IF(OR(72=0,DAY($E$5+72)=1),TEXT($E$5+72,\"mmm/yy\"),\"\")","v":""},{"$f":"IF(OR(73=0,DAY($E$5+73)=1),TEXT($E$5+73,\"mmm/yy\"),\"\")","v":""},{"$f":"IF(OR(74=0,DAY($E$5+74)=1),TEXT($E$5+74,\"mmm/yy\"),\"\")","v":""},{"$f":"IF(OR(75=0,DAY($E$5+75)=1),TEXT($E$5+75,\"mmm/yy\"),\"\")","v":""},{"$f":"IF(OR(76=0,DAY($E$5+76)=1),TEXT($E$5+76,\"mmm/yy\"),\"\")","v":""},{"$f":"IF(OR(77=0,DAY($E$5+77)=1),TEXT($E$5+77,\"mmm/yy\"),\"\")","v":""},{"$f":"IF(OR(78=0,DAY($E$5+78)=1),TEXT($E$5+78,\"mmm/yy\"),\"\")","v":""},{"$f":"IF(OR(79=0,DAY($E$5+79)=1),TEXT($E$5+79,\"mmm/yy\"),\"\")","v":""},{"$f":"IF(OR(80=0,DAY($E$5+80)=1),TEXT($E$5+80,\"mmm/yy\"),\"\")","v":""},{"$f":"IF(OR(81=0,DAY($E$5+81)=1),TEXT($E$5+81,\"mmm/yy\"),\"\")","v":""},{"$f":"IF(OR(82=0,DAY($E$5+82)=1),TEXT($E$5+82,\"mmm/yy\"),\"\")","v":""},{"$f":"IF(OR(83=0,DAY($E$5+83)=1),TEXT($E$5+83,\"mmm/yy\"),\"\")","v":""},{"$f":"IF(OR(84=0,DAY($E$5+84)=1),TEXT($E$5+84,\"mmm/yy\"),\"\")","v":""},{"$f":"IF(OR(85=0,DAY($E$5+85)=1),TEXT($E$5+85,\"mmm/yy\"),\"\")","v":""},{"$f":"IF(OR(86=0,DAY($E$5+86)=1),TEXT($E$5+86,\"mmm/yy\"),\"\")","v":""},{"$f":"IF(OR(87=0,DAY($E$5+87)=1),TEXT($E$5+87,\"mmm/yy\"),\"\")","v":""},{"$f":"IF(OR(88=0,DAY($E$5+88)=1),TEXT($E$5+88,\"mmm/yy\"),\"\")","v":""},{"$f":"IF(OR(89=0,DAY($E$5+89)=1),TEXT($E$5+89,\"mmm/yy\"),\"\")","v":""},{"$f":"IF(OR(90=0,DAY($E$5+90)=1),TEXT($E$5+90,\"mmm/yy\"),\"\")","v":"Apr/26"},{"$f":"IF(OR(91=0,DAY($E$5+91)=1),TEXT($E$5+91,\"mmm/yy\"),\"\")","v":""},{"$f":"IF(OR(92=0,DAY($E$5+92)=1),TEXT($E$5+92,\"mmm/yy\"),\"\")","v":""},{"$f":"IF(OR(93=0,DAY($E$5+93)=1),TEXT($E$5+93,\"mmm/yy\"),\"\")","v":""},{"$f":"IF(OR(94=0,DAY($E$5+94)=1),TEXT($E$5+94,\"mmm/yy\"),\"\")","v":""},{"$f":"IF(OR(95=0,DAY($E$5+95)=1),TEXT($E$5+95,\"mmm/yy\"),\"\")","v":""},{"$f":"IF(OR(96=0,DAY($E$5+96)=1),TEXT($E$5+96,\"mmm/yy\"),\"\")","v":""},{"$f":"IF(OR(97=0,DAY($E$5+97)=1),TEXT($E$5+97,\"mmm/yy\"),\"\")","v":""},{"$f":"IF(OR(98=0,DAY($E$5+98)=1),TEXT($E$5+98,\"mmm/yy\"),\"\")","v":""},{"$f":"IF(OR(99=0,DAY($E$5+99)=1),TEXT($E$5+99,\"mmm/yy\"),\"\")","v":""},{"$f":"IF(OR(100=0,DAY($E$5+100)=1),TEXT($E$5+100,\"mmm/yy\"),\"\")","v":""},{"$f":"IF(OR(101=0,DAY($E$5+101)=1),TEXT($E$5+101,\"mmm/yy\"),\"\")","v":""},{"$f":"IF(OR(102=0,DAY($E$5+102)=1),TEXT($E$5+102,\"mmm/yy\"),\"\")","v":""},{"$f":"IF(OR(103=0,DAY($E$5+103)=1),TEXT($E$5+103,\"mmm/yy\"),\"\")","v":""},{"$f":"IF(OR(104=0,DAY($E$5+104)=1),TEXT($E$5+104,\"mmm/yy\"),\"\")","v":""},{"$f":"IF(OR(105=0,DAY($E$5+105)=1),TEXT($E$5+105,\"mmm/yy\"),\"\")","v":""},{"$f":"IF(OR(106=0,DAY($E$5+106)=1),TEXT($E$5+106,\"mmm/yy\"),\"\")","v":""},{"$f":"IF(OR(107=0,DAY($E$5+107)=1),TEXT($E$5+107,\"mmm/yy\"),\"\")","v":""},{"$f":"IF(OR(108=0,DAY($E$5+108)=1),TEXT($E$5+108,\"mmm/yy\"),\"\")","v":""},{"$f":"IF(OR(109=0,DAY($E$5+109)=1),TEXT($E$5+109,\"mmm/yy\"),\"\")","v":""},{"$f":"IF(OR(110=0,DAY($E$5+110)=1),TEXT($E$5+110,\"mmm/yy\"),\"\")","v":""},{"$f":"IF(OR(111=0,DAY($E$5+111)=1),TEXT($E$5+111,\"mmm/yy\"),\"\")","v":""},{"$f":"IF(OR(112=0,DAY($E$5+112)=1),TEXT($E$5+112,\"mmm/yy\"),\"\")","v":""},{"$f":"IF(OR(113=0,DAY($E$5+113)=1),TEXT($E$5+113,\"mmm/yy\"),\"\")","v":""},{"$f":"IF(OR(114=0,DAY($E$5+114)=1),TEXT($E$5+114,\"mmm/yy\"),\"\")","v":""},{"$f":"IF(OR(115=0,DAY($E$5+115)=1),TEXT($E$5+115,\"mmm/yy\"),\"\")","v":""},{"$f":"IF(OR(116=0,DAY($E$5+116)=1),TEXT($E$5+116,\"mmm/yy\"),\"\")","v":""},{"$f":"IF(OR(117=0,DAY($E$5+117)=1),TEXT($E$5+117,\"mmm/yy\"),\"\")","v":""},{"$f":"IF(OR(118=0,DAY($E$5+118)=1),TEXT($E$5+118,\"mmm/yy\"),\"\")","v":""},{"$f":"IF(OR(119=0,DAY($E$5+119)=1),TEXT($E$5+119,\"mmm/yy\"),\"\")","v":""}]
[null,null,"Projeto","Tarefa","Responsável","Status","Início","Fim","Dias","%",{"$f":"$E$5+0","v":"2026-01-01"},{"$f":"$E$5+1","v":"2026-01-02"},{"$f":"$E$5+2","v":"2026-01-03"},{"$f":"$E$5+3","v":"2026-01-04"},{"$f":"$E$5+4","v":"2026-01-05"},{"$f":"$E$5+5","v":"2026-01-06"},{"$f":"$E$5+6","v":"2026-01-07"},{"$f":"$E$5+7","v":"2026-01-08"},{"$f":"$E$5+8","v":"2026-01-09"},{"$f":"$E$5+9","v":"2026-01-10"},{"$f":"$E$5+10","v":"2026-01-11"},{"$f":"$E$5+11","v":"2026-01-12"},{"$f":"$E$5+12","v":"2026-01-13"},{"$f":"$E$5+13","v":"2026-01-14"},{"$f":"$E$5+14","v":"2026-01-15"},{"$f":"$E$5+15","v":"2026-01-16"},{"$f":"$E$5+16","v":"2026-01-17"},{"$f":"$E$5+17","v":"2026-01-18"},{"$f":"$E$5+18","v":"2026-01-19"},{"$f":"$E$5+19","v":"2026-01-20"},{"$f":"$E$5+20","v":"2026-01-21"},{"$f":"$E$5+21","v":"2026-01-22"},{"$f":"$E$5+22","v":"2026-01-23"},{"$f":"$E$5+23","v":"2026-01-24"},{"$f":"$E$5+24","v":"2026-01-25"},{"$f":"$E$5+25","v":"2026-01-26"},{"$f":"$E$5+26","v":"2026-01-27"},{"$f":"$E$5+27","v":"2026-01-28"},{"$f":"$E$5+28","v":"2026-01-29"},{"$f":"$E$5+29","v":"2026-01-30"},{"$f":"$E$5+30","v":"2026-01-31"},{"$f":"$E$5+31","v":"2026-02-01"},{"$f":"$E$5+32","v":"2026-02-02"},{"$f":"$E$5+33","v":"2026-02-03"},{"$f":"$E$5+34","v":"2026-02-04"},{"$f":"$E$5+35","v":"2026-02-05"},{"$f":"$E$5+36","v":"2026-02-06"},{"$f":"$E$5+37","v":"2026-02-07"},{"$f":"$E$5+38","v":"2026-02-08"},{"$f":"$E$5+39","v":"2026-02-09"},{"$f":"$E$5+40","v":"2026-02-10"},{"$f":"$E$5+41","v":"2026-02-11"},{"$f":"$E$5+42","v":"2026-02-12"},{"$f":"$E$5+43","v":"2026-02-13"},{"$f":"$E$5+44","v":"2026-02-14"},{"$f":"$E$5+45","v":"2026-02-15"},{"$f":"$E$5+46","v":"2026-02-16"},{"$f":"$E$5+47","v":"2026-02-17"},{"$f":"$E$5+48","v":"2026-02-18"},{"$f":"$E$5+49","v":"2026-02-19"},{"$f":"$E$5+50","v":"2026-02-20"},{"$f":"$E$5+51","v":"2026-02-21"},{"$f":"$E$5+52","v":"2026-02-22"},{"$f":"$E$5+53","v":"2026-02-23"},{"$f":"$E$5+54","v":"2026-02-24"},{"$f":"$E$5+55","v":"2026-02-25"},{"$f":"$E$5+56","v":"2026-02-26"},{"$f":"$E$5+57","v":"2026-02-27"},{"$f":"$E$5+58","v":"2026-02-28"},{"$f":"$E$5+59","v":"2026-03-01"},{"$f":"$E$5+60","v":"2026-03-02"},{"$f":"$E$5+61","v":"2026-03-03"},{"$f":"$E$5+62","v":"2026-03-04"},{"$f":"$E$5+63","v":"2026-03-05"},{"$f":"$E$5+64","v":"2026-03-06"},{"$f":"$E$5+65","v":"2026-03-07"},{"$f":"$E$5+66","v":"2026-03-08"},{"$f":"$E$5+67","v":"2026-03-09"},{"$f":"$E$5+68","v":"2026-03-10"},{"$f":"$E$5+69","v":"2026-03-11"},{"$f":"$E$5+70","v":"2026-03-12"},{"$f":"$E$5+71","v":"2026-03-13"},{"$f":"$E$5+72","v":"2026-03-14"},{"$f":"$E$5+73","v":"2026-03-15"},{"$f":"$E$5+74","v":"2026-03-16"},{"$f":"$E$5+75","v":"2026-03-17"},{"$f":"$E$5+76","v":"2026-03-18"},{"$f":"$E$5+77","v":"2026-03-19"},{"$f":"$E$5+78","v":"2026-03-20"},{"$f":"$E$5+79","v":"2026-03-21"},{"$f":"$E$5+80","v":"2026-03-22"},{"$f":"$E$5+81","v":"2026-03-23"},{"$f":"$E$5+82","v":"2026-03-24"},{"$f":"$E$5+83","v":"2026-03-25"},{"$f":"$E$5+84","v":"2026-03-26"},{"$f":"$E$5+85","v":"2026-03-27"},{"$f":"$E$5+86","v":"2026-03-28"},{"$f":"$E$5+87","v":"2026-03-29"},{"$f":"$E$5+88","v":"2026-03-30"},{"$f":"$E$5+89","v":"2026-03-31"},{"$f":"$E$5+90","v":"2026-04-01"},{"$f":"$E$5+91","v":"2026-04-02"},{"$f":"$E$5+92","v":"2026-04-03"},{"$f":"$E$5+93","v":"2026-04-04"},{"$f":"$E$5+94","v":"2026-04-05"},{"$f":"$E$5+95","v":"2026-04-06"},{"$f":"$E$5+96","v":"2026-04-07"},{"$f":"$E$5+97","v":"2026-04-08"},{"$f":"$E$5+98","v":"2026-04-09"},{"$f":"$E$5+99","v":"2026-04-10"},{"$f":"$E$5+100","v":"2026-04-11"},{"$f":"$E$5+101","v":"2026-04-12"},{"$f":"$E$5+102","v":"2026-04-13"},{"$f":"$E$5+103","v":"2026-04-14"},{"$f":"$E$5+104","v":"2026-04-15"},{"$f":"$E$5+105","v":"2026-04-16"},{"$f":"$E$5+106","v":"2026-04-17"},{"$f":"$E$5+107","v":"2026-04-18"},{"$f":"$E$5+108","v":"2026-04-19"},{"$f":"$E$5+109","v":"2026-04-20"},{"$f":"$E$5+110","v":"2026-04-21"},{"$f":"$E$5+111","v":"2026-04-22"},{"$f":"$E$5+112","v":"2026-04-23"},{"$f":"$E$5+113","v":"2026-04-24"},{"$f":"$E$5+114","v":"2026-04-25"},{"$f":"$E$5+115","v":"2026-04-26"},{"$f":"$E$5+116","v":"2026-04-27"},{"$f":"$E$5+117","v":"2026-04-28"},{"$f":"$E$5+118","v":"2026-04-29"},{"$f":"$E$5+119","v":"2026-04-30"}]
[null,null,{"$f":"IFERROR(INDEX(tblTarefas[Projeto],1),\"\")","v":"PRJ-01"},{"$f":"IFERROR(INDEX(tblTarefas[Título],1),\"\")","v":"Mapear processos atuais"},{"$f":"IFERROR(INDEX(tblTarefas[Responsável],1),\"\")","v":"Bruno Martins"},{"$f":"IFERROR(INDEX(tblTarefas[Status],1),\"\")","v":"Concluída"},{"$f":"IFERROR(INDEX(tblTarefas[Data Início],1),\"\")","v":"2026-01-05"},{"$f":"IFERROR(INDEX(tblTarefas[Data Prevista],1),\"\")","v":"2026-01-23"},{"$f":"IFERROR(INDEX(tblTarefas[Dias Previstos],1),\"\")","v":19},{"$f":"IFERROR(INDEX(tblTarefas[Percentual],1),\"\")","v":{"v":1,"d":"100%"}}]
[null,null,{"$f":"IFERROR(INDEX(tblTarefas[Projeto],2),\"\")","v":"PRJ-01"},{"$f":"IFERROR(INDEX(tblTarefas[Título],2),\"\")","v":"Documentar requisitos"},{"$f":"IFERROR(INDEX(tblTarefas[Responsável],2),\"\")","v":"Bruno Martins"},{"$f":"IFERROR(INDEX(tblTarefas[Status],2),\"\")","v":"Concluída"},{"$f":"IFERROR(INDEX(tblTarefas[Data Início],2),\"\")","v":"2026-01-26"},{"$f":"IFERROR(INDEX(tblTarefas[Data Prevista],2),\"\")","v":"2026-02-13"},{"$f":"IFERROR(INDEX(tblTarefas[Dias Previstos],2),\"\")","v":19},{"$f":"IFERROR(INDEX(tblTarefas[Percentual],2),\"\")","v":{"v":1,"d":"100%"}}]
[null,null,{"$f":"IFERROR(INDEX(tblTarefas[Projeto],3),\"\")","v":"PRJ-01"},{"$f":"IFERROR(INDEX(tblTarefas[Título],3),\"\")","v":"Parametrizar módulo financeiro"},{"$f":"IFERROR(INDEX(tblTarefas[Responsável],3),\"\")","v":"Eduarda Pires"},{"$f":"IFERROR(INDEX(tblTarefas[Status],3),\"\")","v":"Em andamento"},{"$f":"IFERROR(INDEX(tblTarefas[Data Início],3),\"\")","v":"2026-02-17"},{"$f":"IFERROR(INDEX(tblTarefas[Data Prevista],3),\"\")","v":"2026-04-10"},{"$f":"IFERROR(INDEX(tblTarefas[Dias Previstos],3),\"\")","v":53},{"$f":"IFERROR(INDEX(tblTarefas[Percentual],3),\"\")","v":{"v":0.875,"d":"88%"}}]
[null,null,{"$f":"IFERROR(INDEX(tblTarefas[Projeto],4),\"\")","v":"PRJ-01"},{"$f":"IFERROR(INDEX(tblTarefas[Título],4),\"\")","v":"Parametrizar módulo estoque"},{"$f":"IFERROR(INDEX(tblTarefas[Responsável],4),\"\")","v":"Bruno Martins"},{"$f":"IFERROR(INDEX(tblTarefas[Status],4),\"\")","v":"Em andamento"},{"$f":"IFERROR(INDEX(tblTarefas[Data Início],4),\"\")","v":"2026-03-02"},{"$f":"IFERROR(INDEX(tblTarefas[Data Prevista],4),\"\")","v":"2026-05-15"},{"$f":"IFERROR(INDEX(tblTarefas[Dias Previstos],4),\"\")","v":75},{"$f":"IFERROR(INDEX(tblTarefas[Percentual],4),\"\")","v":{"v":0.5,"d":"50%"}}]
[null,null,{"$f":"IFERROR(INDEX(tblTarefas[Projeto],5),\"\")","v":"PRJ-01"},{"$f":"IFERROR(INDEX(tblTarefas[Título],5),\"\")","v":"Migração de dados legados"},{"$f":"IFERROR(INDEX(tblTarefas[Responsável],5),\"\")","v":"Felipe Andrade"},{"$f":"IFERROR(INDEX(tblTarefas[Status],5),\"\")","v":"Não iniciada"},{"$f":"IFERROR(INDEX(tblTarefas[Data Início],5),\"\")","v":"2026-06-01"},{"$f":"IFERROR(INDEX(tblTarefas[Data Prevista],5),\"\")","v":"2026-07-31"},{"$f":"IFERROR(INDEX(tblTarefas[Dias Previstos],5),\"\")","v":61},{"$f":"IFERROR(INDEX(tblTarefas[Percentual],5),\"\")","v":{"v":0,"d":"0%"}}]
[null,null,{"$f":"IFERROR(INDEX(tblTarefas[Projeto],6),\"\")","v":"PRJ-01"},{"$f":"IFERROR(INDEX(tblTarefas[Título],6),\"\")","v":"Treinamento de usuários"},{"$f":"IFERROR(INDEX(tblTarefas[Responsável],6),\"\")","v":"Gabriela Rocha"},{"$f":"IFERROR(INDEX(tblTarefas[Status],6),\"\")","v":"Não iniciada"},{"$f":"IFERROR(INDEX(tblTarefas[Data Início],6),\"\")","v":"2026-08-03"},{"$f":"IFERROR(INDEX(tblTarefas[Data Prevista],6),\"\")","v":"2026-08-28"},{"$f":"IFERROR(INDEX(tblTarefas[Dias Previstos],6),\"\")","v":26},{"$f":"IFERROR(INDEX(tblTarefas[Percentual],6),\"\")","v":{"v":0,"d":"0%"}}]
[null,null,{"$f":"IFERROR(INDEX(tblTarefas[Projeto],7),\"\")","v":"PRJ-01"},{"$f":"IFERROR(INDEX(tblTarefas[Título],7),\"\")","v":"Go-live e suporte"},{"$f":"IFERROR(INDEX(tblTarefas[Responsável],7),\"\")","v":"Bruno Martins"},{"$f":"IFERROR(INDEX(tblTarefas[Status],7),\"\")","v":"Não iniciada"},{"$f":"IFERROR(INDEX(tblTarefas[Data Início],7),\"\")","v":"2026-08-31"},{"$f":"IFERROR(INDEX(tblTarefas[Data Prevista],7),\"\")","v":"2026-09-30"},{"$f":"IFERROR(INDEX(tblTarefas[Dias Previstos],7),\"\")","v":31},{"$f":"IFERROR(INDEX(tblTarefas[Percentual],7),\"\")","v":{"v":0,"d":"0%"}}]
[null,null,{"$f":"IFERROR(INDEX(tblTarefas[Projeto],8),\"\")","v":"PRJ-02"},{"$f":"IFERROR(INDEX(tblTarefas[Título],8),\"\")","v":"Briefing com cliente"},{"$f":"IFERROR(INDEX(tblTarefas[Responsável],8),\"\")","v":"Carla Nogueira"},{"$f":"IFERROR(INDEX(tblTarefas[Status],8),\"\")","v":"Concluída"},{"$f":"IFERROR(INDEX(tblTarefas[Data Início],8),\"\")","v":"2026-02-02"},{"$f":"IFERROR(INDEX(tblTarefas[Data Prevista],8),\"\")","v":"2026-02-13"},{"$f":"IFERROR(INDEX(tblTarefas[Dias Previstos],8),\"\")","v":12},{"$f":"IFERROR(INDEX(tblTarefas[Percentual],8),\"\")","v":{"v":1,"d":"100%"}}]
[null,null,{"$f":"IFERROR(INDEX(tblTarefas[Projeto],9),\"\")","v":"PRJ-02"},{"$f":"IFERROR(INDEX(tblTarefas[Título],9),\"\")","v":"Desenvolver conceito criativo"},{"$f":"IFERROR(INDEX(tblTarefas[Responsável],9),\"\")","v":"Carla Nogueira"},{"$f":"IFERROR(INDEX(tblTarefas[Status],9),\"\")","v":"Concluída"},{"$f":"IFERROR(INDEX(tblTarefas[Data Início],9),\"\")","v":"2026-02-16"},{"$f":"IFERROR(INDEX(tblTarefas[Data Prevista],9),\"\")","v":"2026-03-13"},{"$f":"IFERROR(INDEX(tblTarefas[Dias Previstos],9),\"\")","v":26},{"$f":"IFERROR(INDEX(tblTarefas[Percentual],9),\"\")","v":{"v":1,"d":"100%"}}]
[null,null,{"$f":"IFERROR(INDEX(tblTarefas[Projeto],10),\"\")","v":"PRJ-02"},{"$f":"IFERROR(INDEX(tblTarefas[Título],10),\"\")","v":"Produzir peças gráficas"},{"$f":"IFERROR(INDEX(tblTarefas[Responsável],10),\"\")","v":"Carla Nogueira"},{"$f":"IFERROR(INDEX(tblTarefas[Status],10),\"\")","v":"Em andamento"},{"$f":"IFERROR(INDEX(tblTarefas[Data Início],10),\"\")","v":"2026-03-16"},{"$f":"IFERROR(INDEX(tblTarefas[Data Prevista],10),\"\")","v":"2026-05-29"},{"$f":"IFERROR(INDEX(tblTarefas[Dias Previstos],10),\"\")","v":75},{"$f":"IFERROR(INDEX(tblTarefas[Percentual],10),\"\")","v":{"v":0.75,"d":"75%"}}]
[null,null,{"$f":"IFERROR(INDEX(tblTarefas[Projeto],11),\"\")","v":"PRJ-02"},{"$f":"IFERROR(INDEX(tblTarefas[Título],11),\"\")","v":"Produzir vídeo institucional"},{"$f":"IFERROR(INDEX(tblTarefas[Responsável],11),\"\")","v":"Carla Nogueira"},{"$f":"IFERROR(INDEX(tblTarefas[Status],11),\"\")","v":"Em andamento"},{"$f":"IFERROR(INDEX(tblTarefas[Data Início],11),\"\")","v":"2026-04-06"},{"$f":"IFERROR(INDEX(tblTarefas[Data Prevista],11),\"\")","v":"2026-06-15"},{"$f":"IFERROR(INDEX(tblTarefas[Dias Previstos],11),\"\")","v":71},{"$f":"IFERROR(INDEX(tblTarefas[Percentual],11),\"\")","v":{"v":0.5,"d":"50%"}}]
[null,null,{"$f":"IFERROR(INDEX(tblTarefas[Projeto],12),\"\")","v":"PRJ-02"},{"$f":"IFERROR(INDEX(tblTarefas[Título],12),\"\")","v":"Plano de mídia"},{"$f":"IFERROR(INDEX(tblTarefas[Responsável],12),\"\")","v":"Henrique Dias"},{"$f":"IFERROR(INDEX(tblTarefas[Status],12),\"\")","v":"Aguardando"},{"$f":"IFERROR(INDEX(tblTarefas[Data Início],12),\"\")","v":"2026-06-01"},{"$f":"IFERROR(INDEX(tblTarefas[Data Prevista],12),\"\")","v":"2026-06-26"},{"$f":"IFERROR(INDEX(tblTarefas[Dias Previstos],12),\"\")","v":26},{"$f":"IFERROR(INDEX(tblTarefas[Percentual],12),\"\")","v":{"v":0,"d":"0%"}}]
[null,null,{"$f":"IFERROR(INDEX(tblTarefas[Projeto],13),\"\")","v":"PRJ-02"},{"$f":"IFERROR(INDEX(tblTarefas[Título],13),\"\")","v":"Veicular campanha"},{"$f":"IFERROR(INDEX(tblTarefas[Responsável],13),\"\")","v":"Henrique Dias"},{"$f":"IFERROR(INDEX(tblTarefas[Status],13),\"\")","v":"Não iniciada"},{"$f":"IFERROR(INDEX(tblTarefas[Data Início],13),\"\")","v":"2026-07-01"},{"$f":"IFERROR(INDEX(tblTarefas[Data Prevista],13),\"\")","v":"2026-07-31"},{"$f":"IFERROR(INDEX(tblTarefas[Dias Previstos],13),\"\")","v":31},{"$f":"IFERROR(INDEX(tblTarefas[Percentual],13),\"\")","v":{"v":0,"d":"0%"}}]
[null,null,{"$f":"IFERROR(INDEX(tblTarefas[Projeto],14),\"\")","v":"PRJ-03"},{"$f":"IFERROR(INDEX(tblTarefas[Título],14),\"\")","v":"Terraplanagem"},{"$f":"IFERROR(INDEX(tblTarefas[Responsável],14),\"\")","v":"Diego Ferreira"},{"$f":"IFERROR(INDEX(tblTarefas[Status],14),\"\")","v":"Concluída"},{"$f":"IFERROR(INDEX(tblTarefas[Data Início],14),\"\")","v":"2025-11-10"},{"$f":"IFERROR(INDEX(tblTarefas[Data Prevista],14),\"\")","v":"2025-12-19"},{"$f":"IFERROR(INDEX(tblTarefas[Dias Previstos],14),\"\")","v":40},{"$f":"IFERROR(INDEX(tblTarefas[Percentual],14),\"\")","v":{"v":1,"d":"100%"}}]
[null,null,{"$f":"IFERROR(INDEX(tblTarefas[Projeto],15),\"\")","v":"PRJ-03"},{"$f":"IFERROR(INDEX(tblTarefas[Título],15),\"\")","v":"Fundação"},{"$f":"IFERROR(INDEX(tblTarefas[Responsável],15),\"\")","v":"Diego Ferreira"},{"$f":"IFERROR(INDEX(tblTarefas[Status],15),\"\")","v":"Concluída"},{"$f":"IFERROR(INDEX(tblTarefas[Data Início],15),\"\")","v":"2026-01-05"},{"$f":"IFERROR(INDEX(tblTarefas[Data Prevista],15),\"\")","v":"2026-02-27"},{"$f":"IFERROR(INDEX(tblTarefas[Dias Previstos],15),\"\")","v":54},{"$f":"IFERROR(INDEX(tblTarefas[Percentual],15),\"\")","v":{"v":1,"d":"100%"}}]
[null,null,{"$f":"IFERROR(INDEX(tblTarefas[Projeto],16),\"\")","v":"PRJ-03"},{"$f":"IFERROR(INDEX(tblTarefas[Título],16),\"\")","v":"Estrutura metálica"},{"$f":"IFERROR(INDEX(tblTarefas[Responsável],16),\"\")","v":"Diego Ferreira"},{"$f":"IFERROR(INDEX(tblTarefas[Status],16),\"\")","v":"Em andamento"},{"$f":"IFERROR(INDEX(tblTarefas[Data Início],16),\"\")","v":"2026-03-09"},{"$f":"IFERROR(INDEX(tblTarefas[Data Prevista],16),\"\")","v":"2026-05-29"},{"$f":"IFERROR(INDEX(tblTarefas[Dias Previstos],16),\"\")","v":82},{"$f":"IFERROR(INDEX(tblTarefas[Percentual],16),\"\")","v":{"v":0.7307692307692307,"d":"73%"}}]
[null,null,{"$f":"IFERROR(INDEX(tblTarefas[Projeto],17),\"\")","v":"PRJ-03"},{"$f":"IFERROR(INDEX(tblTarefas[Título],17),\"\")","v":"Cobertura"},{"$f":"IFERROR(INDEX(tblTarefas[Responsável],17),\"\")","v":"Diego Ferreira"},{"$f":"IFERROR(INDEX(tblTarefas[Status],17),\"\")","v":"Não iniciada"},{"$f":"IFERROR(INDEX(tblTarefas[Data Início],17),\"\")","v":"2026-06-01"},{"$f":"IFERROR(INDEX(tblTarefas[Data Prevista],17),\"\")","v":"2026-06-19"},{"$f":"IFERROR(INDEX(tblTarefas[Dias Previstos],17),\"\")","v":19},{"$f":"IFERROR(INDEX(tblTarefas[Percentual],17),\"\")","v":{"v":0,"d":"0%"}}]
[null,null,{"$f":"IFERROR(INDEX(tblTarefas[Projeto],18),\"\")","v":"PRJ-03"},{"$f":"IFERROR(INDEX(tblTarefas[Título],18),\"\")","v":"Acabamentos e vistoria"},{"$f":"IFERROR(INDEX(tblTarefas[Responsável],18),\"\")","v":"Diego Ferreira"},{"$f":"IFERROR(INDEX(tblTarefas[Status],18),\"\")","v":"Não iniciada"},{"$f":"IFERROR(INDEX(tblTarefas[Data Início],18),\"\")","v":"2026-06-22"},{"$f":"IFERROR(INDEX(tblTarefas[Data Prevista],18),\"\")","v":"2026-06-30"},{"$f":"IFERROR(INDEX(tblTarefas[Dias Previstos],18),\"\")","v":9},{"$f":"IFERROR(INDEX(tblTarefas[Percentual],18),\"\")","v":{"v":0,"d":"0%"}}]
[null,null,{"$f":"IFERROR(INDEX(tblTarefas[Projeto],19),\"\")","v":"PRJ-04"},{"$f":"IFERROR(INDEX(tblTarefas[Título],19),\"\")","v":"Diagnóstico orçamentário"},{"$f":"IFERROR(INDEX(tblTarefas[Responsável],19),\"\")","v":"Eduarda Pires"},{"$f":"IFERROR(INDEX(tblTarefas[Status],19),\"\")","v":"Concluída"},{"$f":"IFERROR(INDEX(tblTarefas[Data Início],19),\"\")","v":"2026-01-15"},{"$f":"IFERROR(INDEX(tblTarefas[Data Prevista],19),\"\")","v":"2026-02-13"},{"$f":"IFERROR(INDEX(tblTarefas[Dias Previstos],19),\"\")","v":30},{"$f":"IFERROR(INDEX(tblTarefas[Percentual],19),\"\")","v":{"v":1,"d":"100%"}}]
[null,null,{"$f":"IFERROR(INDEX(tblTarefas[Projeto],20),\"\")","v":"PRJ-04"},{"$f":"IFERROR(INDEX(tblTarefas[Título],20),\"\")","v":"Redesenho do orçamento"},{"$f":"IFERROR(INDEX(tblTarefas[Responsável],20),\"\")","v":"Eduarda Pires"},{"$f":"IFERROR(INDEX(tblTarefas[Status],20),\"\")","v":"Concluída"},{"$f":"IFERROR(INDEX(tblTarefas[Data Início],20),\"\")","v":"2026-02-16"},{"$f":"IFERROR(INDEX(tblTarefas[Data Prevista],20),\"\")","v":"2026-03-31"},{"$f":"IFERROR(INDEX(tblTarefas[Dias Previstos],20),\"\")","v":44},{"$f":"IFERROR(INDEX(tblTarefas[Percentual],20),\"\")","v":{"v":1,"d":"100%"}}]
[null,null,{"$f":"IFERROR(INDEX(tblTarefas[Projeto],21),\"\")","v":"PRJ-04"},{"$f":"IFERROR(INDEX(tblTarefas[Título],21),\"\")","v":"Aprovação da diretoria"},{"$f":"IFERROR(INDEX(tblTarefas[Responsável],21),\"\")","v":"Ana Beatriz Costa"},{"$f":"IFERROR(INDEX(tblTarefas[Status],21),\"\")","v":"Concluída"},{"$f":"IFERROR(INDEX(tblTarefas[Data Início],21),\"\")","v":"2026-04-01"},{"$f":"IFERROR(INDEX(tblTarefas[Data Prevista],21),\"\")","v":"2026-04-28"},{"$f":"IFERROR(INDEX(tblTarefas[Dias Previstos],21),\"\")","v":28},{"$f":"IFERROR(INDEX(tblTarefas[Percentual],21),\"\")","v":{"v":1,"d":"100%"}}]
[null,null,{"$f":"IFERROR(INDEX(tblTarefas[Projeto],22),\"\")","v":"PRJ-05"},{"$f":"IFERROR(INDEX(tblTarefas[Título],22),\"\")","v":"Levantar necessidades de treinamento"},{"$f":"IFERROR(INDEX(tblTarefas[Responsável],22),\"\")","v":"Gabriela Rocha"},{"$f":"IFERROR(INDEX(tblTarefas[Status],22),\"\")","v":"Pausada"},{"$f":"IFERROR(INDEX(tblTarefas[Data Início],22),\"\")","v":"2026-03-02"},{"$f":"IFERROR(INDEX(tblTarefas[Data Prevista],22),\"\")","v":"2026-03-27"},{"$f":"IFERROR(INDEX(tblTarefas[Dias Previstos],22),\"\")","v":26},{"$f":"IFERROR(INDEX(tblTarefas[Percentual],22),\"\")","v":{"v":0.5,"d":"50%"}}]
[null,null,{"$f":"IFERROR(INDEX(tblTarefas[Projeto],23),\"\")","v":"PRJ-05"},{"$f":"IFERROR(INDEX(tblTarefas[Título],23),\"\")","v":"Definir trilhas de aprendizagem"},{"$f":"IFERROR(INDEX(tblTarefas[Responsável],23),\"\")","v":"Gabriela Rocha"},{"$f":"IFERROR(INDEX(tblTarefas[Status],23),\"\")","v":"Não iniciada"},{"$f":"IFERROR(INDEX(tblTarefas[Data Início],23),\"\")","v":"2026-03-30"},{"$f":"IFERROR(INDEX(tblTarefas[Data Prevista],23),\"\")","v":"2026-04-10"},{"$f":"IFERROR(INDEX(tblTarefas[Dias Previstos],23),\"\")","v":12},{"$f":"IFERROR(INDEX(tblTarefas[Percentual],23),\"\")","v":{"v":0,"d":"0%"}}]
[null,null,{"$f":"IFERROR(INDEX(tblTarefas[Projeto],24),\"\")","v":"PRJ-06"},{"$f":"IFERROR(INDEX(tblTarefas[Título],24),\"\")","v":"Levantar escopo do portal"},{"$f":"IFERROR(INDEX(tblTarefas[Responsável],24),\"\")","v":"Felipe Andrade"},{"$f":"IFERROR(INDEX(tblTarefas[Status],24),\"\")","v":"Não iniciada"},{"$f":"IFERROR(INDEX(tblTarefas[Data Início],24),\"\")","v":"2026-06-01"},{"$f":"IFERROR(INDEX(tblTarefas[Data Prevista],24),\"\")","v":"2026-06-30"},{"$f":"IFERROR(INDEX(tblTarefas[Dias Previstos],24),\"\")","v":30},{"$f":"IFERROR(INDEX(tblTarefas[Percentual],24),\"\")","v":{"v":0,"d":"0%"}}]
[null,null,{"$f":"IFERROR(INDEX(tblTarefas[Projeto],25),\"\")","v":"PRJ-06"},{"$f":"IFERROR(INDEX(tblTarefas[Título],25),\"\")","v":"Prototipar interface"},{"$f":"IFERROR(INDEX(tblTarefas[Responsável],25),\"\")","v":"Carla Nogueira"},{"$f":"IFERROR(INDEX(tblTarefas[Status],25),\"\")","v":"Não iniciada"},{"$f":"IFERROR(INDEX(tblTarefas[Data Início],25),\"\")","v":"2026-07-01"},{"$f":"IFERROR(INDEX(tblTarefas[Data Prevista],25),\"\")","v":"2026-07-31"},{"$f":"IFERROR(INDEX(tblTarefas[Dias Previstos],25),\"\")","v":31},{"$f":"IFERROR(INDEX(tblTarefas[Percentual],25),\"\")","v":{"v":0,"d":"0%"}}]
[null,null,{"$f":"IFERROR(INDEX(tblTarefas[Projeto],26),\"\")","v":"PRJ-06"},{"$f":"IFERROR(INDEX(tblTarefas[Título],26),\"\")","v":"Definir arquitetura técnica"},{"$f":"IFERROR(INDEX(tblTarefas[Responsável],26),\"\")","v":"Felipe Andrade"},{"$f":"IFERROR(INDEX(tblTarefas[Status],26),\"\")","v":"Não iniciada"},{"$f":"IFERROR(INDEX(tblTarefas[Data Início],26),\"\")","v":"2026-07-01"},{"$f":"IFERROR(INDEX(tblTarefas[Data Prevista],26),\"\")","v":"2026-08-14"},{"$f":"IFERROR(INDEX(tblTarefas[Dias Previstos],26),\"\")","v":45},{"$f":"IFERROR(INDEX(tblTarefas[Percentual],26),\"\")","v":{"v":0,"d":"0%"}}]
[]
[null,null,"LEGENDA:"]
[{"$nulls":3},"Concluído"]
[{"$nulls":3},"Atrasado"]
[{"$nulls":3},"Prazo próximo (7 dias)"]
[{"$nulls":3},"Em andamento"]
[{"$nulls":3},"Não iniciado"]
[{"$nulls":3},"Hoje"]

{"sheet":"12 - Relatórios","index":11,"n_rows":65,"n_cols":20,"rows_kept":65,"hidden":true}
[]
[]
[]
[]
[]
[null,null,"RELATÓRIOS"]
[]
[null,null,"R1 — PROJETOS POR STATUS",null,null,"R2 — PROJETOS POR CLIENTE",null,null,"R3 — PROJETOS POR CATEGORIA",null,null,"R4 — PROJETOS POR RESPONSÁVEL"]
[null,null,"Row Labels","Projetos",null,"Row Labels","Projetos",null,"Row Labels","Projetos",null,"Row Labels","Projetos"]
[null,null,"Concluído",1,null,"Alfa Indústria",2,null,"Construção",1,null,"Bruno Martins",1]
[null,null,"Em andamento",3,null,"Beta Varejo",1,null,"Desenvolvimento",1,null,"Carla Nogueira",1]
[null,null,"Pausado",1,null,"Delta Serviços",1,null,"Financeiro",1,null,"Diego Ferreira",1]
[null,null,"Planejamento",1,null,"Épsilon Saúde",1,null,"Marketing",1,null,"Eduarda Pires",1]
[null,null,"Grand Total",6,null,"Gama Construtora",1,null,"RH",1,null,"Felipe Andrade",1]
[{"$nulls":5},"Grand Total",6,null,"TI",1,null,"Gabriela Rocha",1]
[{"$nulls":8},"Grand Total",6,null,"Grand Total",6]
[]
[]
[]
[]
[]
[null,null,"R5 — HORAS POR FUNCIONÁRIO",null,null,"R6 — HORAS POR PROJETO",null,null,"R7 — CUSTOS POR PROJETO",{"$nulls":4},"R8 — TAREFAS POR PROJETO E STATUS"]
[null,null,"Row Labels","Horas",null,"Row Labels","Horas",null,"Row Labels","Previsto","Realizado",null,null,"Tarefas","Column Labels"]
[null,null,"Ana Beatriz Costa",{"v":36,"d":"36.00"},null,"PRJ-01",{"v":460,"d":"460.00"},null,"PRJ-01",{"v":680000,"d":"R$ 680,000"},{"v":617800,"d":"R$ 617,800"},null,null,"Row Labels","Aguardando","Concluída","Em andamento","Não iniciada","Pausada","Grand Total"]
[null,null,"Bruno Martins",{"v":320,"d":"320.00"},null,"PRJ-02",{"v":304,"d":"304.00"},null,"PRJ-02",{"v":240000,"d":"R$ 240,000"},{"v":198000,"d":"R$ 198,000"},null,null,"PRJ-01",null,2,2,3,null,7]
[null,null,"Carla Nogueira",{"v":304,"d":"304.00"},null,"PRJ-03",{"v":1045,"d":"1045.00"},null,"PRJ-03",{"v":2200000,"d":"R$ 2,200,000"},{"v":1918500,"d":"R$ 1,918,500"},null,null,"PRJ-02",1,2,2,1,null,6]
[null,null,"Diego Ferreira",{"v":1045,"d":"1045.00"},null,"PRJ-04",{"v":230,"d":"230.00"},null,"PRJ-04",{"v":210000,"d":"R$ 210,000"},{"v":206400,"d":"R$ 206,400"},null,null,"PRJ-03",null,2,1,2,null,5]
[null,null,"Eduarda Pires",{"v":334,"d":"334.00"},null,"PRJ-05",{"v":30,"d":"30.00"},null,"PRJ-05",{"v":60000,"d":"R$ 60,000"},{"v":12000,"d":"R$ 12,000"},null,null,"PRJ-04",null,3,{"$nulls":3},3]
[null,null,"Gabriela Rocha",{"v":30,"d":"30.00"},null,"Grand Total",{"v":2069,"d":"2069.00"},null,"PRJ-06",{"v":320000,"d":"R$ 320,000"},0,null,null,"PRJ-05",{"$nulls":3},1,1,2]
[null,null,"Grand Total",{"v":2069,"d":"2069.00"},{"$nulls":4},"Grand Total",{"v":3710000,"d":"R$ 3,710,000"},{"v":2952700,"d":"R$ 2,952,700"},null,null,"PRJ-06",{"$nulls":3},3,null,3]
[{"$nulls":13},"Grand Total",1,9,5,10,1,26]
{"$rows_empty":8}
[null,null,"R9 — PRODUTIVIDADE POR RESPONSÁVEL",{"$nulls":4},"R10 — TEMPO MÉDIO DE CONCLUSÃO",{"$nulls":4},"R11 — TAREFAS POR PRIORIDADE E STATUS"]
[null,null,"Row Labels","Tarefas","Horas","% Médio",null,"Row Labels","Média Dias Previstos","Média Dias Utilizados",null,null,"Tarefas","Column Labels"]
[null,null,"Ana Beatriz Costa",1,{"v":36,"d":"36.00"},{"v":1,"d":"100.0%"},null,"PRJ-01",{"v":40.57142857142857,"d":"41"},{"v":61.142857142857146,"d":"61"},null,null,"Row Labels","Aguardando","Concluída","Em andamento","Não iniciada","Pausada","Grand Total"]
[null,null,"Bruno Martins",4,{"v":320,"d":"320.00"},{"v":0.625,"d":"62.5%"},null,"PRJ-02",{"v":40.166666666666664,"d":"40"},{"v":65.66666666666667,"d":"66"},null,null,"Alta",null,6,2,4,null,12]
[null,null,"Carla Nogueira",5,{"v":304,"d":"304.00"},{"v":0.65,"d":"65.0%"},null,"PRJ-03",{"v":40.8,"d":"41"},71,null,null,"Baixa",{"$nulls":4},1,1]
[null,null,"Diego Ferreira",5,{"v":1045,"d":"1,045.00"},{"v":0.5461538461538462,"d":"54.6%"},null,"PRJ-04",34,32,null,null,"Crítica",null,1,2,2,null,5]
[null,null,"Eduarda Pires",3,{"v":334,"d":"334.00"},{"v":0.9583333333333334,"d":"95.8%"},null,"PRJ-05",19,141,null,null,"Média",1,2,1,4,null,8]
[null,null,"Felipe Andrade",3,{"v":0,"d":"0.00"},{"v":0,"d":"0.0%"},null,"PRJ-06",{"v":35.333333333333336,"d":"35"},44,null,null,"Grand Total",1,9,5,10,1,26]
[null,null,"Gabriela Rocha",3,{"v":30,"d":"30.00"},{"v":0.16666666666666666,"d":"16.7%"},null,"Grand Total",{"v":37.5,"d":"38"},{"v":64.88461538461539,"d":"65"}]
[null,null,"Henrique Dias",2,{"v":0,"d":"0.00"},{"v":0,"d":"0.0%"}]
[null,null,"Grand Total",26,{"v":2069,"d":"2,069.00"},{"v":0.4944526627218935,"d":"49.4%"}]
[]
[]
[]
[]
[]
[null,null,"R12 — MARCOS POR PROJETO E STATUS"]
[null,null,"Marcos","Column Labels"]
[null,null,"Row Labels","Concluído","Em andamento","Não iniciado","Pausado","Grand Total"]
[null,null,"PRJ-01",1,1,1,null,3]
[null,null,"PRJ-02",1,1,1,null,3]
[null,null,"PRJ-03",1,1,1,null,3]
[null,null,"PRJ-04",1,{"$nulls":3},1]
[null,null,"PRJ-05",{"$nulls":3},1,1]
[null,null,"PRJ-06",null,null,1,null,1]
[null,null,"Grand Total",4,3,4,1,12]

{"sheet":"13 - Cálculos","index":12,"n_rows":61,"n_cols":46,"rows_kept":61,"hidden":true}
[]
[]
[]
[]
[]
[null,null,"ABA DE CÁLCULOS — NÃO EDITAR"]
[null,null,"Nenhum usuário deve editar esta aba. Todos os indicadores são calculados automaticamente.",{"$nulls":3},"BASE — PROJETOS POR STATUS",null,null,"BASE — POR RESPONSÁVEL",{"$nulls":5},"BASE — POR PROJETO",{"$nulls":8},"BASE — POR CLIENTE",null,null,"BASE — POR CATEGORIA",null,null,"BASE — EVOLUÇÃO DE ENTREGAS",{"$nulls":3},"BASE — GRÁFICOS COMPARATIVOS",{"$nulls":6},"LISTAS DE VALIDAÇÃO"]
[null,null,"BLOCO 1 — KPIs DE PROJETOS",null,"Indicador utilizado no Dashboard",null,"Status","Qtde",null,"Responsável","Tarefas","Concluídas","Atrasadas","Horas Realizadas",null,"ID","Projeto","% Concluído","Horas Previstas","Horas Realizadas","Custo Previsto","Custo Realizado","Dias Restantes",null,"Cliente","Projetos",null,"Categoria","Projetos",null,"Mês","Tarefas Concluídas","Horas Realizadas",null,"Projeto","Horas Previstas","Horas Realizadas","Projeto","Custo Previsto","Custo Realizado",null,"Status Projeto","Status Tarefa","Prioridade","Tipo Financeiro","Status Marco"]
[null,null,"Total de projetos",{"$f":"COUNTA(tblProjetos[ID Projeto])","v":6},"Contagem de registros",null,"Planejamento",{"$f":"COUNTIFS(tblProjetos[Status],$G9)","v":1},null,{"$f":"IFERROR(INDEX(tblEquipe[Nome],1),\"\")","v":"Ana Beatriz Costa"},{"$f":"IF($J9=\"\",\"\",COUNTIFS(tblTarefas[Responsável],$J9))","v":1},{"$f":"IF($J9=\"\",\"\",COUNTIFS(tblTarefas[Responsável],$J9,tblTarefas[Status],\"Concluída\"))","v":1},{"$f":"IF($J9=\"\",\"\",SUMPRODUCT((tblTarefas[Responsável]=$J9)*(tblTarefas[Status]<>\"Concluída\")*(tblTarefas[Status]<>\"Cancelada\")*(tblTarefas[Data Prevista]<TODAY())))","v":0},{"$f":"IF($J9=\"\",\"\",SUMIFS(tblHoras[Horas Trabalhadas],tblHoras[Funcionário],$J9))","v":36},null,{"$f":"IFERROR(INDEX(tblProjetos[ID Projeto],1),\"\")","v":"PRJ-01"},{"$f":"IF($P9=\"\",\"\",INDEX(tblProjetos[Nome Projeto],MATCH($P9,tblProjetos[ID Projeto],0)))","v":"Implantação ERP Corporativo"},{"$f":"IF($P9=\"\",\"\",INDEX(tblProjetos[Percentual Concluído],MATCH($P9,tblProjetos[ID Projeto],0)))","v":{"v":0.48214285714285715,"d":"48.2%"}},{"$f":"IF($P9=\"\",\"\",SUMIFS(tblTarefas[Horas Previstas],tblTarefas[Projeto],$P9))","v":960},{"$f":"IF($P9=\"\",\"\",SUMIFS(tblHoras[Horas Trabalhadas],tblHoras[Projeto],$P9))","v":460},{"$f":"IF($P9=\"\",\"\",INDEX(tblProjetos[Orçamento Previsto],MATCH($P9,tblProjetos[ID Projeto],0)))","v":{"v":480000,"d":"R$ 480,000"}},{"$f":"IF($P9=\"\",\"\",INDEX(tblProjetos[Custo Atual],MATCH($P9,tblProjetos[ID Projeto],0)))","v":{"v":417800,"d":"R$ 417,800"}},{"$f":"IF($P9=\"\",\"\",INDEX(tblProjetos[Data Final Prevista],MATCH($P9,tblProjetos[ID Projeto],0))-TODAY())","v":48},null,{"$f":"IFERROR(INDEX(tblClientes[Empresa],1),\"\")","v":"Alfa Indústria"},{"$f":"IF($Y9=\"\",\"\",COUNTIFS(tblProjetos[Cliente],$Y9))","v":2},null,{"$f":"IFERROR(INDEX(tblCategorias[Categoria],1),\"\")","v":"Marketing"},{"$f":"IF($AB9=\"\",\"\",COUNTIFS(tblProjetos[Categoria],$AB9))","v":1},null,"2026-01-01",{"$f":"COUNTIFS(tblTarefas[Data Conclusão],\">=\"&$AE9,tblTarefas[Data Conclusão],\"<\"&EDATE($AE9,1))","v":1},{"$f":"SUMIFS(tblHoras[Horas Trabalhadas],tblHoras[Data],\">=\"&$AE9,tblHoras[Data],\"<\"&EDATE($AE9,1))","v":363.5},null,{"$f":"$Q9","v":"Implantação ERP Corporativo"},{"$f":"$S9","v":960},{"$f":"$T9","v":460},{"$f":"$Q9","v":"Implantação ERP Corporativo"},{"$f":"$U9","v":{"v":480000,"d":"R$ 480,000"}},{"$f":"$V9","v":{"v":417800,"d":"R$ 417,800"}},null,"Planejamento","Não iniciada","Baixa","Receita","Não iniciado"]
[null,null,"Projetos em planejamento",{"$f":"COUNTIFS(tblProjetos[Status],\"Planejamento\")","v":1},null,null,"Em andamento",{"$f":"COUNTIFS(tblProjetos[Status],$G10)","v":3},null,{"$f":"IFERROR(INDEX(tblEquipe[Nome],2),\"\")","v":"Bruno Martins"},{"$f":"IF($J10=\"\",\"\",COUNTIFS(tblTarefas[Responsável],$J10))","v":4},{"$f":"IF($J10=\"\",\"\",COUNTIFS(tblTarefas[Responsável],$J10,tblTarefas[Status],\"Concluída\"))","v":2},{"$f":"IF($J10=\"\",\"\",SUMPRODUCT((tblTarefas[Responsável]=$J10)*(tblTarefas[Status]<>\"Concluída\")*(tblTarefas[Status]<>\"Cancelada\")*(tblTarefas[Data Prevista]<TODAY())))","v":1},{"$f":"IF($J10=\"\",\"\",SUMIFS(tblHoras[Horas Trabalhadas],tblHoras[Funcionário],$J10))","v":320},null,{"$f":"IFERROR(INDEX(tblProjetos[ID Projeto],2),\"\")","v":"PRJ-02"},{"$f":"IF($P10=\"\",\"\",INDEX(tblProjetos[Nome Projeto],MATCH($P10,tblProjetos[ID Projeto],0)))","v":"Campanha Institucional 2026"},{"$f":"IF($P10=\"\",\"\",INDEX(tblProjetos[Percentual Concluído],MATCH($P10,tblProjetos[ID Projeto],0)))","v":{"v":0.5416666666666666,"d":"54.2%"}},{"$f":"IF($P10=\"\",\"\",SUMIFS(tblTarefas[Horas Previstas],tblTarefas[Projeto],$P10))","v":520},{"$f":"IF($P10=\"\",\"\",SUMIFS(tblHoras[Horas Trabalhadas],tblHoras[Projeto],$P10))","v":304},{"$f":"IF($P10=\"\",\"\",INDEX(tblProjetos[Orçamento Previsto],MATCH($P10,tblProjetos[ID Projeto],0)))","v":{"v":150000,"d":"R$ 150,000"}},{"$f":"IF($P10=\"\",\"\",INDEX(tblProjetos[Custo Atual],MATCH($P10,tblProjetos[ID Projeto],0)))","v":{"v":108000,"d":"R$ 108,000"}},{"$f":"IF($P10=\"\",\"\",INDEX(tblProjetos[Data Final Prevista],MATCH($P10,tblProjetos[ID Projeto],0))-TODAY())","v":-13},null,{"$f":"IFERROR(INDEX(tblClientes[Empresa],2),\"\")","v":"Beta Varejo"},{"$f":"IF($Y10=\"\",\"\",COUNTIFS(tblProjetos[Cliente],$Y10))","v":1},null,{"$f":"IFERROR(INDEX(tblCategorias[Categoria],2),\"\")","v":"TI"},{"$f":"IF($AB10=\"\",\"\",COUNTIFS(tblProjetos[Categoria],$AB10))","v":1},null,"2026-02-01",{"$f":"COUNTIFS(tblTarefas[Data Conclusão],\">=\"&$AE10,tblTarefas[Data Conclusão],\"<\"&EDATE($AE10,1))","v":3},{"$f":"SUMIFS(tblHoras[Horas Trabalhadas],tblHoras[Data],\">=\"&$AE10,tblHoras[Data],\"<\"&EDATE($AE10,1))","v":254.5},null,"Campanha Institucional 2026",520,304,"Campanha Institucional 2026",{"v":150000,"d":"R$ 150,000"},{"v":108000,"d":"R$ 108,000"},null,"Em andamento","Em andamento","Média","Despesa","Em andamento"]
[null,null,"Projetos em andamento",{"$f":"COUNTIFS(tblProjetos[Status],\"Em andamento\")","v":3},null,null,"Pausado",{"$f":"COUNTIFS(tblProjetos[Status],$G11)","v":1},null,{"$f":"IFERROR(INDEX(tblEquipe[Nome],3),\"\")","v":"Carla Nogueira"},{"$f":"IF($J11=\"\",\"\",COUNTIFS(tblTarefas[Responsável],$J11))","v":5},{"$f":"IF($J11=\"\",\"\",COUNTIFS(tblTarefas[Responsável],$J11,tblTarefas[Status],\"Concluída\"))","v":2},{"$f":"IF($J11=\"\",\"\",SUMPRODUCT((tblTarefas[Responsável]=$J11)*(tblTarefas[Status]<>\"Concluída\")*(tblTarefas[Status]<>\"Cancelada\")*(tblTarefas[Data Prevista]<TODAY())))","v":3},{"$f":"IF($J11=\"\",\"\",SUMIFS(tblHoras[Horas Trabalhadas],tblHoras[Funcionário],$J11))","v":304},null,{"$f":"IFERROR(INDEX(tblProjetos[ID Projeto],3),\"\")","v":"PRJ-03"},{"$f":"IF($P11=\"\",\"\",INDEX(tblProjetos[Nome Projeto],MATCH($P11,tblProjetos[ID Projeto],0)))","v":"Obra Centro de Distribuição"},{"$f":"IF($P11=\"\",\"\",INDEX(tblProjetos[Percentual Concluído],MATCH($P11,tblProjetos[ID Projeto],0)))","v":{"v":0.5461538461538462,"d":"54.6%"}},{"$f":"IF($P11=\"\",\"\",SUMIFS(tblTarefas[Horas Previstas],tblTarefas[Projeto],$P11))","v":1460},{"$f":"IF($P11=\"\",\"\",SUMIFS(tblHoras[Horas Trabalhadas],tblHoras[Projeto],$P11))","v":1045},{"$f":"IF($P11=\"\",\"\",INDEX(tblProjetos[Orçamento Previsto],MATCH($P11,tblProjetos[ID Projeto],0)))","v":{"v":2200000,"d":"R$ 2,200,000"}},{"$f":"IF($P11=\"\",\"\",INDEX(tblProjetos[Custo Atual],MATCH($P11,tblProjetos[ID Projeto],0)))","v":{"v":1918500,"d":"R$ 1,918,500"}},{"$f":"IF($P11=\"\",\"\",INDEX(tblProjetos[Data Final Prevista],MATCH($P11,tblProjetos[ID Projeto],0))-TODAY())","v":-44},null,{"$f":"IFERROR(INDEX(tblClientes[Empresa],3),\"\")","v":"Gama Construtora"},{"$f":"IF($Y11=\"\",\"\",COUNTIFS(tblProjetos[Cliente],$Y11))","v":1},null,{"$f":"IFERROR(INDEX(tblCategorias[Categoria],3),\"\")","v":"Construção"},{"$f":"IF($AB11=\"\",\"\",COUNTIFS(tblProjetos[Categoria],$AB11))","v":1},null,"2026-03-01",{"$f":"COUNTIFS(tblTarefas[Data Conclusão],\">=\"&$AE11,tblTarefas[Data Conclusão],\"<\"&EDATE($AE11,1))","v":3},{"$f":"SUMIFS(tblHoras[Horas Trabalhadas],tblHoras[Data],\">=\"&$AE11,tblHoras[Data],\"<\"&EDATE($AE11,1))","v":234.5},null,"Obra Centro de Distribuição",1460,1045,"Obra Centro de Distribuição",{"v":2200000,"d":"R$ 2,200,000"},{"v":1918500,"d":"R$ 1,918,500"},null,"Pausado","Concluída","Alta","Investimento","Concluído"]
[null,null,"Projetos pausados",{"$f":"COUNTIFS(tblProjetos[Status],\"Pausado\")","v":1},null,null,"Concluído",{"$f":"COUNTIFS(tblProjetos[Status],$G12)","v":1},null,{"$f":"IFERROR(INDEX(tblEquipe[Nome],4),\"\")","v":"Diego Ferreira"},{"$f":"IF($J12=\"\",\"\",COUNTIFS(tblTarefas[Responsável],$J12))","v":5},{"$f":"IF($J12=\"\",\"\",COUNTIFS(tblTarefas[Responsável],$J12,tblTarefas[Status],\"Concluída\"))","v":2},{"$f":"IF($J12=\"\",\"\",SUMPRODUCT((tblTarefas[Responsável]=$J12)*(tblTarefas[Status]<>\"Concluída\")*(tblTarefas[Status]<>\"Cancelada\")*(tblTarefas[Data Prevista]<TODAY())))","v":3},{"$f":"IF($J12=\"\",\"\",SUMIFS(tblHoras[Horas Trabalhadas],tblHoras[Funcionário],$J12))","v":1045},null,{"$f":"IFERROR(INDEX(tblProjetos[ID Projeto],4),\"\")","v":"PRJ-04"},{"$f":"IF($P12=\"\",\"\",INDEX(tblProjetos[Nome Projeto],MATCH($P12,tblProjetos[ID Projeto],0)))","v":"Reestruturação Orçamentária"},{"$f":"IF($P12=\"\",\"\",INDEX(tblProjetos[Percentual Concluído],MATCH($P12,tblProjetos[ID Projeto],0)))","v":{"v":1,"d":"100.0%"}},{"$f":"IF($P12=\"\",\"\",SUMIFS(tblTarefas[Horas Previstas],tblTarefas[Projeto],$P12))","v":250},{"$f":"IF($P12=\"\",\"\",SUMIFS(tblHoras[Horas Trabalhadas],tblHoras[Projeto],$P12))","v":230},{"$f":"IF($P12=\"\",\"\",INDEX(tblProjetos[Orçamento Previsto],MATCH($P12,tblProjetos[ID Projeto],0)))","v":{"v":90000,"d":"R$ 90,000"}},{"$f":"IF($P12=\"\",\"\",INDEX(tblProjetos[Custo Atual],MATCH($P12,tblProjetos[ID Projeto],0)))","v":{"v":86400,"d":"R$ 86,400"}},{"$f":"IF($P12=\"\",\"\",INDEX(tblProjetos[Data Final Prevista],MATCH($P12,tblProjetos[ID Projeto],0))-TODAY())","v":-105},null,{"$f":"IFERROR(INDEX(tblClientes[Empresa],4),\"\")","v":"Delta Serviços"},{"$f":"IF($Y12=\"\",\"\",COUNTIFS(tblProjetos[Cliente],$Y12))","v":1},null,{"$f":"IFERROR(INDEX(tblCategorias[Categoria],4),\"\")","v":"Financeiro"},{"$f":"IF($AB12=\"\",\"\",COUNTIFS(tblProjetos[Categoria],$AB12))","v":1},null,"2026-04-01",{"$f":"COUNTIFS(tblTarefas[Data Conclusão],\">=\"&$AE12,tblTarefas[Data Conclusão],\"<\"&EDATE($AE12,1))","v":1},{"$f":"SUMIFS(tblHoras[Horas Trabalhadas],tblHoras[Data],\">=\"&$AE12,tblHoras[Data],\"<\"&EDATE($AE12,1))","v":520},null,"Reestruturação Orçamentária",250,230,"Reestruturação Orçamentária",{"v":90000,"d":"R$ 90,000"},{"v":86400,"d":"R$ 86,400"},null,"Concluído","Pausada","Crítica",null,"Pausado"]
[null,null,"Projetos concluídos",{"$f":"COUNTIFS(tblProjetos[Status],\"Concluído\")","v":1},null,null,"Cancelado",{"$f":"COUNTIFS(tblProjetos[Status],$G13)","v":0},null,{"$f":"IFERROR(INDEX(tblEquipe[Nome],5),\"\")","v":"Eduarda Pires"},{"$f":"IF($J13=\"\",\"\",COUNTIFS(tblTarefas[Responsável],$J13))","v":3},{"$f":"IF($J13=\"\",\"\",COUNTIFS(tblTarefas[Responsável],$J13,tblTarefas[Status],\"Concluída\"))","v":2},{"$f":"IF($J13=\"\",\"\",SUMPRODUCT((tblTarefas[Responsável]=$J13)*(tblTarefas[Status]<>\"Concluída\")*(tblTarefas[Status]<>\"Cancelada\")*(tblTarefas[Data Prevista]<TODAY())))","v":1},{"$f":"IF($J13=\"\",\"\",SUMIFS(tblHoras[Horas Trabalhadas],tblHoras[Funcionário],$J13))","v":334},null,{"$f":"IFERROR(INDEX(tblProjetos[ID Projeto],5),\"\")","v":"PRJ-05"},{"$f":"IF($P13=\"\",\"\",INDEX(tblProjetos[Nome Projeto],MATCH($P13,tblProjetos[ID Projeto],0)))","v":"Programa de Treinamento Interno"},{"$f":"IF($P13=\"\",\"\",INDEX(tblProjetos[Percentual Concluído],MATCH($P13,tblProjetos[ID Projeto],0)))","v":{"v":0.25,"d":"25.0%"}},{"$f":"IF($P13=\"\",\"\",SUMIFS(tblTarefas[Horas Previstas],tblTarefas[Projeto],$P13))","v":110},{"$f":"IF($P13=\"\",\"\",SUMIFS(tblHoras[Horas Trabalhadas],tblHoras[Projeto],$P13))","v":30},{"$f":"IF($P13=\"\",\"\",INDEX(tblProjetos[Orçamento Previsto],MATCH($P13,tblProjetos[ID Projeto],0)))","v":{"v":60000,"d":"R$ 60,000"}},{"$f":"IF($P13=\"\",\"\",INDEX(tblProjetos[Custo Atual],MATCH($P13,tblProjetos[ID Projeto],0)))","v":{"v":12000,"d":"R$ 12,000"}},{"$f":"IF($P13=\"\",\"\",INDEX(tblProjetos[Data Final Prevista],MATCH($P13,tblProjetos[ID Projeto],0))-TODAY())","v":-74},null,{"$f":"IFERROR(INDEX(tblClientes[Empresa],5),\"\")","v":"Épsilon Saúde"},{"$f":"IF($Y13=\"\",\"\",COUNTIFS(tblProjetos[Cliente],$Y13))","v":1},null,{"$f":"IFERROR(INDEX(tblCategorias[Categoria],5),\"\")","v":"RH"},{"$f":"IF($AB13=\"\",\"\",COUNTIFS(tblProjetos[Categoria],$AB13))","v":1},null,"2026-05-01",{"$f":"COUNTIFS(tblTarefas[Data Conclusão],\">=\"&$AE13,tblTarefas[Data Conclusão],\"<\"&EDATE($AE13,1))","v":0},{"$f":"SUMIFS(tblHoras[Horas Trabalhadas],tblHoras[Data],\">=\"&$AE13,tblHoras[Data],\"<\"&EDATE($AE13,1))","v":669},null,"Programa de Treinamento Interno",110,30,"Programa de Treinamento Interno",{"v":60000,"d":"R$ 60,000"},{"v":12000,"d":"R$ 12,000"},null,"Cancelado","Cancelada",null,null,"Cancelado"]
[null,null,"Projetos cancelados",{"$f":"COUNTIFS(tblProjetos[Status],\"Cancelado\")","v":0},{"$nulls":5},{"$f":"IFERROR(INDEX(tblEquipe[Nome],6),\"\")","v":"Felipe Andrade"},{"$f":"IF($J14=\"\",\"\",COUNTIFS(tblTarefas[Responsável],$J14))","v":3},{"$f":"IF($J14=\"\",\"\",COUNTIFS(tblTarefas[Responsável],$J14,tblTarefas[Status],\"Concluída\"))","v":0},{"$f":"IF($J14=\"\",\"\",SUMPRODUCT((tblTarefas[Responsável]=$J14)*(tblTarefas[Status]<>\"Concluída\")*(tblTarefas[Status]<>\"Cancelada\")*(tblTarefas[Data Prevista]<TODAY())))","v":2},{"$f":"IF($J14=\"\",\"\",SUMIFS(tblHoras[Horas Trabalhadas],tblHoras[Funcionário],$J14))","v":0},null,{"$f":"IFERROR(INDEX(tblProjetos[ID Projeto],6),\"\")","v":"PRJ-06"},{"$f":"IF($P14=\"\",\"\",INDEX(tblProjetos[Nome Projeto],MATCH($P14,tblProjetos[ID Projeto],0)))","v":"Portal de Autoatendimento"},{"$f":"IF($P14=\"\",\"\",INDEX(tblProjetos[Percentual Concluído],MATCH($P14,tblProjetos[ID Projeto],0)))","v":{"v":0,"d":"0.0%"}},{"$f":"IF($P14=\"\",\"\",SUMIFS(tblTarefas[Horas Previstas],tblTarefas[Projeto],$P14))","v":300},{"$f":"IF($P14=\"\",\"\",SUMIFS(tblHoras[Horas Trabalhadas],tblHoras[Projeto],$P14))","v":0},{"$f":"IF($P14=\"\",\"\",INDEX(tblProjetos[Orçamento Previsto],MATCH($P14,tblProjetos[ID Projeto],0)))","v":{"v":320000,"d":"R$ 320,000"}},{"$f":"IF($P14=\"\",\"\",INDEX(tblProjetos[Custo Atual],MATCH($P14,tblProjetos[ID Projeto],0)))","v":0},{"$f":"IF($P14=\"\",\"\",INDEX(tblProjetos[Data Final Prevista],MATCH($P14,tblProjetos[ID Projeto],0))-TODAY())","v":140},{"$nulls":4},{"$f":"IFERROR(INDEX(tblCategorias[Categoria],6),\"\")","v":"Comercial"},{"$f":"IF($AB14=\"\",\"\",COUNTIFS(tblProjetos[Categoria],$AB14))","v":0},null,"2026-06-01",{"$f":"COUNTIFS(tblTarefas[Data Conclusão],\">=\"&$AE14,tblTarefas[Data Conclusão],\"<\"&EDATE($AE14,1))","v":0},{"$f":"SUMIFS(tblHoras[Horas Trabalhadas],tblHoras[Data],\">=\"&$AE14,tblHoras[Data],\"<\"&EDATE($AE14,1))","v":27.5},null,"Portal de Autoatendimento",300,0,"Portal de Autoatendimento",{"v":320000,"d":"R$ 320,000"},0,null,null,"Aguardando"]
[null,null,"Projetos ativos",{"$f":"D10+D11+D12","v":5},"Planejamento + Em andamento + Pausado",null,"BASE — TAREFAS POR STATUS",null,null,{"$f":"IFERROR(INDEX(tblEquipe[Nome],7),\"\")","v":"Gabriela Rocha"},{"$f":"IF($J15=\"\",\"\",COUNTIFS(tblTarefas[Responsável],$J15))","v":3},{"$f":"IF($J15=\"\",\"\",COUNTIFS(tblTarefas[Responsável],$J15,tblTarefas[Status],\"Concluída\"))","v":0},{"$f":"IF($J15=\"\",\"\",SUMPRODUCT((tblTarefas[Responsável]=$J15)*(tblTarefas[Status]<>\"Concluída\")*(tblTarefas[Status]<>\"Cancelada\")*(tblTarefas[Data Prevista]<TODAY())))","v":2},{"$f":"IF($J15=\"\",\"\",SUMIFS(tblHoras[Horas Trabalhadas],tblHoras[Funcionário],$J15))","v":30},{"$nulls":13},{"$f":"IFERROR(INDEX(tblCategorias[Categoria],7),\"\")","v":"Pesquisa"},{"$f":"IF($AB15=\"\",\"\",COUNTIFS(tblProjetos[Categoria],$AB15))","v":0},null,"2026-07-01",{"$f":"COUNTIFS(tblTarefas[Data Conclusão],\">=\"&$AE15,tblTarefas[Data Conclusão],\"<\"&EDATE($AE15,1))","v":0},{"$f":"SUMIFS(tblHoras[Horas Trabalhadas],tblHoras[Data],\">=\"&$AE15,tblHoras[Data],\"<\"&EDATE($AE15,1))","v":0}]
[null,null,"Projetos atrasados",{"$f":"SUMPRODUCT((tblProjetos[Status]<>\"Concluído\")*(tblProjetos[Status]<>\"Cancelado\")*(tblProjetos[Data Final Prevista]<TODAY()))","v":3},"Prazo vencido e não concluído",null,"Status","Qtde",null,{"$f":"IFERROR(INDEX(tblEquipe[Nome],8),\"\")","v":"Henrique Dias"},{"$f":"IF($J16=\"\",\"\",COUNTIFS(tblTarefas[Responsável],$J16))","v":2},{"$f":"IF($J16=\"\",\"\",COUNTIFS(tblTarefas[Responsável],$J16,tblTarefas[Status],\"Concluída\"))","v":0},{"$f":"IF($J16=\"\",\"\",SUMPRODUCT((tblTarefas[Responsável]=$J16)*(tblTarefas[Status]<>\"Concluída\")*(tblTarefas[Status]<>\"Cancelada\")*(tblTarefas[Data Prevista]<TODAY())))","v":2},{"$f":"IF($J16=\"\",\"\",SUMIFS(tblHoras[Horas Trabalhadas],tblHoras[Funcionário],$J16))","v":0},{"$nulls":13},{"$f":"IFERROR(INDEX(tblCategorias[Categoria],8),\"\")","v":"Desenvolvimento"},{"$f":"IF($AB16=\"\",\"\",COUNTIFS(tblProjetos[Categoria],$AB16))","v":1},null,"2026-08-01",{"$f":"COUNTIFS(tblTarefas[Data Conclusão],\">=\"&$AE16,tblTarefas[Data Conclusão],\"<\"&EDATE($AE16,1))","v":0},{"$f":"SUMIFS(tblHoras[Horas Trabalhadas],tblHoras[Data],\">=\"&$AE16,tblHoras[Data],\"<\"&EDATE($AE16,1))","v":0}]
[null,null,"Projetos concluídos no prazo",{"$f":"SUMPRODUCT((tblProjetos[Status]=\"Concluído\")*(tblProjetos[Data Final Real]<=tblProjetos[Data Final Prevista]))","v":1},null,null,"Não iniciada",{"$f":"COUNTIFS(tblTarefas[Status],$G17)","v":10},{"$nulls":22},"2026-09-01",{"$f":"COUNTIFS(tblTarefas[Data Conclusão],\">=\"&$AE17,tblTarefas[Data Conclusão],\"<\"&EDATE($AE17,1))","v":0},{"$f":"SUMIFS(tblHoras[Horas Trabalhadas],tblHoras[Data],\">=\"&$AE17,tblHoras[Data],\"<\"&EDATE($AE17,1))","v":0}]
[null,null,"Projetos concluídos com atraso",{"$f":"SUMPRODUCT((tblProjetos[Status]=\"Concluído\")*(tblProjetos[Data Final Real]>tblProjetos[Data Final Prevista]))","v":0},null,null,"Em andamento",{"$f":"COUNTIFS(tblTarefas[Status],$G18)","v":5},{"$nulls":22},"2026-10-01",{"$f":"COUNTIFS(tblTarefas[Data Conclusão],\">=\"&$AE18,tblTarefas[Data Conclusão],\"<\"&EDATE($AE18,1))","v":0},{"$f":"SUMIFS(tblHoras[Horas Trabalhadas],tblHoras[Data],\">=\"&$AE18,tblHoras[Data],\"<\"&EDATE($AE18,1))","v":0}]
[null,null,"Projetos em risco",{"$f":"SUMPRODUCT((tblProjetos[Status]=\"Em andamento\")*(tblProjetos[Data Final Prevista]-TODAY()<=30)*(tblProjetos[Data Final Prevista]>=TODAY())*(tblProjetos[Percentual Concluído]<0.8))","v":0},"Prazo próximo e baixo progresso",null,"Concluída",{"$f":"COUNTIFS(tblTarefas[Status],$G19)","v":9},{"$nulls":22},"2026-11-01",{"$f":"COUNTIFS(tblTarefas[Data Conclusão],\">=\"&$AE19,tblTarefas[Data Conclusão],\"<\"&EDATE($AE19,1))","v":0},{"$f":"SUMIFS(tblHoras[Horas Trabalhadas],tblHoras[Data],\">=\"&$AE19,tblHoras[Data],\"<\"&EDATE($AE19,1))","v":0}]
[null,null,"% médio de conclusão dos projetos",{"$f":"IFERROR(AVERAGE(tblProjetos[Percentual Concluído]),0)","v":{"v":0.46999389499389493,"d":"47.0%"}},null,null,"Pausada",{"$f":"COUNTIFS(tblTarefas[Status],$G20)","v":1},{"$nulls":22},"2026-12-01",{"$f":"COUNTIFS(tblTarefas[Data Conclusão],\">=\"&$AE20,tblTarefas[Data Conclusão],\"<\"&EDATE($AE20,1))","v":0},{"$f":"SUMIFS(tblHoras[Horas Trabalhadas],tblHoras[Data],\">=\"&$AE20,tblHoras[Data],\"<\"&EDATE($AE20,1))","v":0}]
[{"$nulls":6},"Cancelada",{"$f":"COUNTIFS(tblTarefas[Status],$G21)","v":0}]
[null,null,"BLOCO 2 — KPIs DE TAREFAS",{"$nulls":3},"Aguardando",{"$f":"COUNTIFS(tblTarefas[Status],$G22)","v":1}]
[null,null,"Total de tarefas",{"$f":"COUNTA(tblTarefas[ID])","v":26}]
[null,null,"Tarefas não iniciadas",{"$f":"COUNTIFS(tblTarefas[Status],\"Não iniciada\")","v":10},null,null,"BASE — TAREFAS POR PRIORIDADE"]
[null,null,"Tarefas em andamento",{"$f":"COUNTIFS(tblTarefas[Status],\"Em andamento\")","v":5},null,null,"Prioridade","Qtde"]
[null,null,"Tarefas concluídas",{"$f":"COUNTIFS(tblTarefas[Status],\"Concluída\")","v":9},null,null,"Baixa",{"$f":"COUNTIFS(tblTarefas[Prioridade],$G26)","v":1}]
[null,null,"Tarefas pausadas",{"$f":"COUNTIFS(tblTarefas[Status],\"Pausada\")","v":1},null,null,"Média",{"$f":"COUNTIFS(tblTarefas[Prioridade],$G27)","v":8}]
[null,null,"Tarefas aguardando",{"$f":"COUNTIFS(tblTarefas[Status],\"Aguardando\")","v":1},null,null,"Alta",{"$f":"COUNTIFS(tblTarefas[Prioridade],$G28)","v":12}]
[null,null,"Tarefas canceladas",{"$f":"COUNTIFS(tblTarefas[Status],\"Cancelada\")","v":0},null,null,"Crítica",{"$f":"COUNTIFS(tblTarefas[Prioridade],$G29)","v":5}]
[null,null,"Tarefas pendentes",{"$f":"D24+D27+D28","v":12},"Não iniciadas + pausadas + aguardando"]
[null,null,"Tarefas atrasadas",{"$f":"SUMPRODUCT((tblTarefas[Status]<>\"Concluída\")*(tblTarefas[Status]<>\"Cancelada\")*(tblTarefas[Data Prevista]<TODAY()))","v":14}]
[null,null,"Tarefas críticas abertas",{"$f":"COUNTIFS(tblTarefas[Prioridade],\"Crítica\",tblTarefas[Status],\"<>Concluída\",tblTarefas[Status],\"<>Cancelada\")","v":4}]
[null,null,"% de tarefas atrasadas",{"$f":"IFERROR(D31/D23,0)","v":{"v":0.5384615384615384,"d":"53.8%"}}]
[null,null,"% médio de conclusão das tarefas",{"$f":"IFERROR(AVERAGE(tblTarefas[Percentual]),0)","v":{"v":0.4944526627218935,"d":"49.4%"}}]
[null,null,"Duração média das tarefas (dias)",{"$f":"IFERROR(AVERAGE(tblTarefas[Dias Previstos]),0)","v":37.5}]
[null,null,"Tempo médio de conclusão (dias)",{"$f":"IFERROR(AVERAGEIFS(tblTarefas[Dias Utilizados],tblTarefas[Status],\"Concluída\"),0)","v":30.11111111111111}]
[]
[null,null,"BLOCO 3 — HORAS, CUSTOS E DESVIOS"]
[null,null,"Horas previstas (total)",{"$f":"SUM(tblTarefas[Horas Previstas])","v":{"v":3600,"d":"3600.00"}}]
[null,null,"Horas realizadas (total)",{"$f":"SUM(tblHoras[Horas Trabalhadas])","v":{"v":2069,"d":"2069.00"}}]
[null,null,"% de horas utilizadas",{"$f":"IFERROR(D40/D39,0)","v":{"v":0.5747222222222222,"d":"57.5%"}}]
[null,null,"Desvio de horas",{"$f":"D40-D39","v":-1531},"Positivo = estouro"]
[null,null,"Orçamento previsto (total)",{"$f":"SUM(tblProjetos[Orçamento Previsto])","v":{"v":3300000,"d":"R$ 3,300,000"}}]
[null,null,"Custo realizado (total)",{"$f":"SUM(tblProjetos[Custo Atual])","v":{"v":2542700,"d":"R$ 2,542,700"}}]
[null,null,"% do orçamento consumido",{"$f":"IFERROR(D44/D43,0)","v":{"v":0.7705151515151515,"d":"77.1%"}}]
[null,null,"Desvio financeiro",{"$f":"D44-D43","v":{"v":-757300,"d":"(R$ 757,300)"}},"Positivo = estouro"]
[null,null,"Índice de eficiência financeira",{"$f":"IFERROR(D43/D44,0)","v":1.2978330121524364},"Previsto ÷ Realizado — acima de 1 é bom"]
[null,null,"Receita total realizada",{"$f":"SUMIFS(tblFinanceiro[Valor Real],tblFinanceiro[Tipo],\"Receita\")","v":{"v":410000,"d":"R$ 410,000"}}]
[null,null,"Despesa total realizada",{"$f":"SUMIFS(tblFinanceiro[Valor Real],tblFinanceiro[Tipo],\"Despesa\")","v":{"v":1479700,"d":"R$ 1,479,700"}}]
[null,null,"Investimento total realizado",{"$f":"SUMIFS(tblFinanceiro[Valor Real],tblFinanceiro[Tipo],\"Investimento\")","v":{"v":1063000,"d":"R$ 1,063,000"}}]
[null,null,"Desvio médio de prazo (dias)",{"$f":"IFERROR(AVERAGEIFS(tblTarefas[Dias Utilizados],tblTarefas[Status],\"Concluída\")-AVERAGEIFS(tblTarefas[Dias Previstos],tblTarefas[Status],\"Concluída\"),0)","v":-0.11111111111111072},"Realizado − previsto"]
[null,null,"Índice de cumprimento de cronograma",{"$f":"IFERROR((D23-D31)/D23,0)","v":{"v":0.46153846153846156,"d":"46.2%"}},"Tarefas em dia ÷ total"]
[]
[null,null,"BLOCO 4 — PRODUTIVIDADE"]
[null,null,"Colaboradores ativos",{"$f":"COUNTIFS(tblEquipe[Status],\"Ativo\")","v":7}]
[null,null,"Tarefas concluídas por colaborador",{"$f":"IFERROR(D26/D55,0)","v":1.2857142857142858},"Índice de produtividade"]
[null,null,"Horas médias por lançamento",{"$f":"IFERROR(AVERAGE(tblHoras[Horas Trabalhadas]),0)","v":34.483333333333334}]
[null,null,"Total de marcos",{"$f":"COUNTA(tblMarcos[ID])","v":12}]
[null,null,"Marcos concluídos",{"$f":"COUNTIFS(tblMarcos[Status],\"Concluído\")","v":4}]
[null,null,"Marcos atrasados",{"$f":"SUMPRODUCT((tblMarcos[Status]<>\"Concluído\")*(tblMarcos[Data Prevista]<TODAY()))","v":0}]
[null,null,"% de marcos concluídos",{"$f":"IFERROR(D59/D58,0)","v":{"v":0.3333333333333333,"d":"33.3%"}}]